{"text_format":"3","workbook":"xlsx","n_sheets":8,"sheets":["Présentation de l'outil","Terre, Vie et Vivant","Enjeux","Corps et Santé","Organisation bilan de l'année","bilan compétences travaillées","Listes déroulantes","sous-thèmes SVT lycée"],"not_rendered":{"defined_names":18},"read":"whole","date_system":"1900"}

{"sheet":"Présentation de l'outil","index":0,"n_rows":21,"n_cols":4,"rows_kept":21,"merged":[[0,1,1,3],[3,1,3,3],[7,2,7,3],[8,2,8,3],[9,2,9,3],[10,2,10,3],[11,2,11,3],[12,2,12,3],[13,2,13,3],[14,2,14,3],[15,1,15,3],[16,1,16,3],[18,2,18,3]]}
[null,"Support de travail pour envisager une programmation équilibrée du programme de\nTle Spécialité SVT : \n"]
[]
[]
[null,"Ce document est organisé en onglets : \n - Cet onglet qui présente le document ;\n - Un onglet par thématique du programme de Tle Spécialité SVT :"]
[null,null,"Thématique 1 :","La Terre, la vie et l’organisation du vivant "]
[null,null,"Thématique 2 :","Les enjeux contemporains de la planète "]
[null,null,"Thématique 3 :","Corps humain et santé "]
[null,null,"Chaque onglet thématique permet :"]
[null,null," - D'envisager une organisation des sous-thèmes (menu déroulant proposé) dans le calendrier annuel (en mettant le numéro de la semaine envisagée). Néanmoins, chaque thématique ne comporte que 36 lignes afin de limiter les activités à envisager (soit 3 lignes pour une semaine en moyenne)"]
[null,null," - D'envisager la nature des activités (menu déroulant proposé) pour chaque sous-thème à traiter (il peut être choisi plusieurs fois);"]
[null,null," - D'indiquer les titres des activités envisagées et/ou les titres des parties si cela vous parait pertinent ;"]
[null,null," - De choisir les compétences que les activités envisagées permettent de développer chez les élèves  (menu déroulant proposé) ;"]
[null,null," - D'envisager le type d'évaluations associées aux activités (menu déroulant proposé) ;"]
[null,null," - D'avoir un récapitulatif du nombre de fois qu'une compétence serait abordée (travaillée et évaluée) au cours d'une thématique ;"]
[null,null," - D'avoir un récapitulatif du nombre de fois qu'une compétence serait évaluée et le type d'évaluation envisagée (évaluation diagnostique, formative, sommative, auto-évaluation ou aucune) au cours d'une thématique."]
[null," - Un onglet \"bilan compétences travaillées\" offrant une vision sur une année scolaire des compétences qui sont envisagées sur les trois thématiques."]
[null," - Un onglet \"Organisation bilan de l'année\" permettant d'obtenir une vision synthétique de l'organisation envisagée d'une année scolaire (présentant les semaines, les sous-thèmes, le type d'activité envisagée, les titres proposés et les évaluations potentielles)"]
[]
[null,"2020-2021","Document de travail co-construit en 2019-2020 par les IA-IPR et les formateurs de SVT de l'académie de Nantes et se poursuivant :"]
[null,"contact :","Frederic.Colineaux@ac-nantes.fr"]
[null,null,"marion.rilhac@ac-montpellier.fr "]

{"sheet":"Terre, Vie et Vivant","index":1,"n_rows":46,"n_cols":21,"rows_kept":46,"merged":[[0,0,1,5],[0,6,1,6],[0,7,1,7],[0,9,1,9],[0,10,1,10],[0,12,1,12],[0,13,1,13],[0,15,1,15],[0,16,1,16],[2,0,2,5],[2,6,2,8],[2,9,2,11],[2,12,2,14],[2,15,2,17],[2,18,2,20],[3,0,4,0],[3,1,4,1],[3,2,3,3],[3,4,3,5],[3,6,4,7],[3,8,4,8],[3,9,4,10],[3,11,4,11],[3,12,4,13],[3,14,4,14],[3,15,4,16],[3,17,4,17],[3,18,4,19],[3,20,4,20],[42,5,45,5]]}
["Support de travail pour envisager\nune programmation de la thématique de Tle Spécialité SVT :\nLa Terre, la vie et l’organisation du vivant",{"$nulls":5},"CL = ","Compétences du livret scolaire",null,"ED =","évaluation diagnostique",null,"EF =","évaluation formative",null,"ES = ","évaluation sommative"]
[]
["point de vigilance : Les compétences énoncées gagneraient à ne pas être travaillées pour elles-mêmes mais avec une projection sur  le post-baccalauréat de l'élève",{"$nulls":5},"compétence :",null,null,"compétence :",null,null,"compétence :",null,null,"compétence :",null,null,"compétence :"]
["semaine","Sous-Thèmes","Contexte de travail",null,"Activités",null,"Pratiquer des démarches\nscientifiques et technologiques",null,"évaluation","Concevoir, créer, réaliser",null,"évaluation","Utiliser des outils et mobiliser des méthodes pour apprendre",null,"évaluation","Communiquer et utiliser le numérique",null,"évaluation","Adopter un comportement éthique et responsable",null,"évaluation"]
[null,null,"présentiel\ndistanciel","type de salle de classe","nature de l'activité","Titre de l'activité et/ou\nTitre de la partie\nRemarques ou \"Autre à définir\""]
{"$rows_empty":36}
[{"$nulls":5},"nombre de fois que la compétence est travaillée à travers cette thématique :",{"$f":"COUNTA((G6:H41))","v":0},null,null,{"$f":"COUNTA((J6:K41))","v":0},null,null,{"$f":"COUNTA((M6:N41))","v":0},null,null,{"$f":"COUNTA((P6:Q41))","v":0},null,null,{"$f":"COUNTA((S6:T41))","v":0}]
[{"$nulls":5},"nombre de fois que la compétence est évaluée à travers cette thématique :","ED :","EF : ",null,"ED :","EF : ",null,"ED :","EF : ",null,"ED :","EF : ",null,"ED :","EF : "]
[{"$nulls":6},{"$f":"COUNTIF(I6:I41,\"ED\")","v":0},{"$f":"COUNTIF(I6:I41,\"EF\")","v":0},null,{"$f":"COUNTIF(L6:L41,\"ED\")","v":0},{"$f":"COUNTIF(L6:L41,\"EF\")","v":0},null,{"$f":"COUNTIF(O6:O41,\"ED\")","v":0},{"$f":"COUNTIF(O6:O41,\"EF\")","v":0},null,{"$f":"COUNTIF(R6:R41,\"ED\")","v":0},{"$f":"COUNTIF(R6:R41,\"EF\")","v":0},null,{"$f":"COUNTIF(U6:U41,\"ED\")","v":0},{"$f":"COUNTIF(U6:U41,\"EF\")","v":0}]
[{"$nulls":6},"ES : ","auto-évaluation : ",null,"ES : ","auto-évaluation : ",null,"ES : ","auto-évaluation : ",null,"ES : ","auto-évaluation : ",null,"ES : ","auto-évaluation : "]
[{"$nulls":6},{"$f":"COUNTIF(I6:I41,\"ES\")","v":0},{"$f":"COUNTIF(I6:I41,\"auto-évaluation\")","v":0},null,{"$f":"COUNTIF(L6:L41,\"ES\")","v":0},{"$f":"COUNTIF(L6:L41,\"auto-évaluation\")","v":0},null,{"$f":"COUNTIF(O6:O41,\"ES\")","v":0},{"$f":"COUNTIF(O6:O41,\"auto-évaluation\")","v":0},null,{"$f":"COUNTIF(R6:R41,\"ES\")","v":0},{"$f":"COUNTIF(R6:R41,\"auto-évaluation\")","v":0},null,{"$f":"COUNTIF(U6:U41,\"ES\")","v":0},{"$f":"COUNTIF(U6:U41,\"auto-évaluation\")","v":0}]

{"sheet":"Enjeux","index":2,"n_rows":46,"n_cols":21,"rows_kept":46,"merged":[[0,0,1,5],[0,6,1,6],[0,7,1,7],[0,9,1,9],[0,10,1,10],[0,12,1,12],[0,13,1,13],[0,15,1,15],[0,16,1,16],[2,0,2,5],[2,6,2,8],[2,9,2,11],[2,12,2,14],[2,15,2,17],[2,18,2,20],[3,0,4,0],[3,1,4,1],[3,2,3,3],[3,4,3,5],[3,6,4,7],[3,8,4,8],[3,9,4,10],[3,11,4,11],[3,12,4,13],[3,14,4,14],[3,15,4,16],[3,17,4,17],[3,18,4,19],[3,20,4,20],[42,5,45,5]]}
["Support de travail pour envisager\nune programmation de la thématique de Tle Spécialité SVT :\nLes enjeux contemporains de la planète ",{"$nulls":5},"CL = ","Compétences du livret scolaire",null,"ED =","évaluation diagnostique",null,"EF =","évaluation formative",null,"ES = ","évaluation sommative"]
[]
["point de vigilance : Les compétences énoncées gagneraient à ne pas être travaillées pour elles-mêmes mais avec une projection sur  le post-baccalauréat de l'élève",{"$nulls":5},"compétence :",null,null,"compétence :",null,null,"compétence :",null,null,"compétence :",null,null,"compétence :"]
["semaine","Sous-Thèmes","Contexte de travail",null,"Activités",null,"Pratiquer des démarches\nscientifiques et technologiques",null,"évaluation","Concevoir, créer, réaliser",null,"évaluation","Utiliser des outils et mobiliser des méthodes pour apprendre",null,"évaluation","Communiquer et utiliser le numérique",null,"évaluation","Adopter un comportement éthique et responsable",null,"évaluation"]
[null,null,"présentiel\ndistanciel","type de salle de classe","nature de l'activité","Titre de l'activité et/ou\nTitre de la partie\nRemarques ou \"Autre à définir\""]
{"$rows_empty":36}
[{"$nulls":5},"nombre de fois que la compétence est travaillée à travers cette thématique :",{"$f":"COUNTA((G6:H41))","v":0},null,null,{"$f":"COUNTA((J6:K41))","v":0},null,null,{"$f":"COUNTA((M6:N41))","v":0},null,null,{"$f":"COUNTA((P6:Q41))","v":0},null,null,{"$f":"COUNTA((S6:T41))","v":0}]
[{"$nulls":5},"nombre de fois que la compétence est évaluée à travers cette thématique :","ED :","EF : ",null,"ED :","EF : ",null,"ED :","EF : ",null,"ED :","EF : ",null,"ED :","EF : "]
[{"$nulls":6},{"$f":"COUNTIF(I6:I41,\"ED\")","v":0},{"$f":"COUNTIF(I6:I41,\"EF\")","v":0},null,{"$f":"COUNTIF(L6:L41,\"ED\")","v":0},{"$f":"COUNTIF(L6:L41,\"EF\")","v":0},null,{"$f":"COUNTIF(O6:O41,\"ED\")","v":0},{"$f":"COUNTIF(O6:O41,\"EF\")","v":0},null,{"$f":"COUNTIF(R6:R41,\"ED\")","v":0},{"$f":"COUNTIF(R6:R41,\"EF\")","v":0},null,{"$f":"COUNTIF(U6:U41,\"ED\")","v":0},{"$f":"COUNTIF(U6:U41,\"EF\")","v":0}]
[{"$nulls":6},"ES : ","auto-évaluation : ",null,"ES : ","auto-évaluation : ",null,"ES : ","auto-évaluation : ",null,"ES : ","auto-évaluation : ",null,"ES : ","auto-évaluation : "]
[{"$nulls":6},{"$f":"COUNTIF(I6:I41,\"ES\")","v":0},{"$f":"COUNTIF(I6:I41,\"auto-évaluation\")","v":0},null,{"$f":"COUNTIF(L6:L41,\"ES\")","v":0},{"$f":"COUNTIF(L6:L41,\"auto-évaluation\")","v":0},null,{"$f":"COUNTIF(O6:O41,\"ES\")","v":0},{"$f":"COUNTIF(O6:O41,\"auto-évaluation\")","v":0},null,{"$f":"COUNTIF(R6:R41,\"ES\")","v":0},{"$f":"COUNTIF(R6:R41,\"auto-évaluation\")","v":0},null,{"$f":"COUNTIF(U6:U41,\"ES\")","v":0},{"$f":"COUNTIF(U6:U41,\"auto-évaluation\")","v":0}]

{"sheet":"Corps et Santé","index":3,"n_rows":46,"n_cols":21,"rows_kept":46,"merged":[[0,0,1,5],[0,6,1,6],[0,7,1,7],[0,9,1,9],[0,10,1,10],[0,12,1,12],[0,13,1,13],[0,15,1,15],[0,16,1,16],[2,0,2,5],[2,6,2,8],[2,9,2,11],[2,12,2,14],[2,15,2,17],[2,18,2,20],[3,0,4,0],[3,1,4,1],[3,2,3,3],[3,4,3,5],[3,6,4,7],[3,8,4,8],[3,9,4,10],[3,11,4,11],[3,12,4,13],[3,14,4,14],[3,15,4,16],[3,17,4,17],[3,18,4,19],[3,20,4,20],[42,5,45,5]]}
["Support de travail pour envisager\nune programmation de la thématique de Tle Spécialité SVT :\nCorps humain et santé ",{"$nulls":5},"CL = ","Compétences du livret scolaire",null,"ED =","évaluation diagnostique",null,"EF =","évaluation formative",null,"ES = ","évaluation sommative"]
[]
["point de vigilance : Les compétences énoncées gagneraient à ne pas être travaillées pour elles-mêmes mais avec une projection sur  le post-baccalauréat de l'élève",{"$nulls":5},"compétence :",null,null,"compétence :",null,null,"compétence :",null,null,"compétence :",null,null,"compétence :"]
["semaine","Sous-Thèmes","Contexte de travail",null,"Activités",null,"Pratiquer des démarches\nscientifiques et technologiques",null,"évaluation","Concevoir, créer, réaliser",null,"évaluation","Utiliser des outils et mobiliser des méthodes pour apprendre",null,"évaluation","Communiquer et utiliser le numérique",null,"évaluation","Adopter un comportement éthique et responsable",null,"évaluation"]
[null,null,"présentiel\ndistanciel","type de salle de classe","nature de l'activité","Titre de l'activité et/ou\nTitre de la partie\nRemarques ou \"Autre à définir\""]
{"$rows_empty":36}
[{"$nulls":5},"nombre de fois que la compétence est travaillée à travers cette thématique :",{"$f":"COUNTA((G6:H41))","v":0},null,null,{"$f":"COUNTA((J6:K41))","v":0},null,null,{"$f":"COUNTA((M6:N41))","v":0},null,null,{"$f":"COUNTA((P6:Q41))","v":0},null,null,{"$f":"COUNTA((S6:T41))","v":0}]
[{"$nulls":5},"nombre de fois que la compétence est évaluée à travers cette thématique :","ED :","EF : ",null,"ED :","EF : ",null,"ED :","EF : ",null,"ED :","EF : ",null,"ED :","EF : "]
[{"$nulls":6},{"$f":"COUNTIF(I6:I41,\"ED\")","v":0},{"$f":"COUNTIF(I6:I41,\"EF\")","v":0},null,{"$f":"COUNTIF(L6:L41,\"ED\")","v":0},{"$f":"COUNTIF(L6:L41,\"EF\")","v":0},null,{"$f":"COUNTIF(O6:O41,\"ED\")","v":0},{"$f":"COUNTIF(O6:O41,\"EF\")","v":0},null,{"$f":"COUNTIF(R6:R41,\"ED\")","v":0},{"$f":"COUNTIF(R6:R41,\"EF\")","v":0},null,{"$f":"COUNTIF(U6:U41,\"ED\")","v":0},{"$f":"COUNTIF(U6:U41,\"EF\")","v":0}]
[{"$nulls":6},"ES : ","auto-évaluation : ",null,"ES : ","auto-évaluation : ",null,"ES : ","auto-évaluation : ",null,"ES : ","auto-évaluation : ",null,"ES : ","auto-évaluation : "]
[{"$nulls":6},{"$f":"COUNTIF(I6:I41,\"ES\")","v":0},{"$f":"COUNTIF(I6:I41,\"auto-évaluation\")","v":0},null,{"$f":"COUNTIF(L6:L41,\"ES\")","v":0},{"$f":"COUNTIF(L6:L41,\"auto-évaluation\")","v":0},null,{"$f":"COUNTIF(O6:O41,\"ES\")","v":0},{"$f":"COUNTIF(O6:O41,\"auto-évaluation\")","v":0},null,{"$f":"COUNTIF(R6:R41,\"ES\")","v":0},{"$f":"COUNTIF(R6:R41,\"auto-évaluation\")","v":0},null,{"$f":"COUNTIF(U6:U41,\"ES\")","v":0},{"$f":"COUNTIF(U6:U41,\"auto-évaluation\")","v":0}]

{"sheet":"Organisation bilan de l'année","index":4,"n_rows":115,"n_cols":11,"rows_kept":115,"merged":[[0,0,2,5],[3,2,3,3],[3,4,3,5],[3,6,3,10]]}
["Organisation Bilan du travail envisagé sur une année scolaire de\nTle Spécialité SVT"]
[]
[]
[null,null,"Contexte de travail",null,"Activités",null,"compétences évaluées"]
["semaine","Sous-Thèmes","présentiel\ndistanciel","type de salle de classe","nature de l'activité","Titre de l'activité et/ou\nTitre de la partie\nRemarques ou \"Autre à définir\"",{"$f":"'Listes déroulantes'!F2","v":"Pratiquer des démarches scientifiques"},{"$f":"'Listes déroulantes'!G2","v":"Concevoir, créer, réaliser"},{"$f":"'Listes déroulantes'!H2","v":"Utiliser des outils et mobiliser des méthodes pour apprendre"},{"$f":"'Listes déroulantes'!I2","v":"Communiquer et utiliser le numérique / Pratiquer des langages"},{"$f":"'Listes déroulantes'!J2","v":"C5. Adopter un comportement éthique et responsable"}]
[{"$f":"'Terre, Vie et Vivant'!A6","v":0},{"$f":"'Terre, Vie et Vivant'!B6","v":0},{"$f":"'Terre, Vie et Vivant'!C6","v":0},{"$f":"'Terre, Vie et Vivant'!D6","v":0},{"$f":"'Terre, Vie et Vivant'!E6","v":0},{"$f":"'Terre, Vie et Vivant'!F6","v":0},{"$f":"'Terre, Vie et Vivant'!I6","v":0},{"$f":"'Terre, Vie et Vivant'!L6","v":0},{"$f":"'Terre, Vie et Vivant'!O6","v":0},{"$f":"'Terre, Vie et Vivant'!R6","v":0},{"$f":"'Terre, Vie et Vivant'!U6","v":0}]
[{"$f":"'Terre, Vie et Vivant'!A7","v":0},{"$f":"'Terre, Vie et Vivant'!B7","v":0},{"$f":"'Terre, Vie et Vivant'!C7","v":0},{"$f":"'Terre, Vie et Vivant'!D7","v":0},{"$f":"'Terre, Vie et Vivant'!E7","v":0},{"$f":"'Terre, Vie et Vivant'!F7","v":0},{"$f":"'Terre, Vie et Vivant'!I7","v":0},{"$f":"'Terre, Vie et Vivant'!L7","v":0},{"$f":"'Terre, Vie et Vivant'!O7","v":0},{"$f":"'Terre, Vie et Vivant'!R7","v":0},{"$f":"'Terre, Vie et Vivant'!U7","v":0}]
[{"$f":"'Terre, Vie et Vivant'!A8","v":0},{"$f":"'Terre, Vie et Vivant'!B8","v":0},{"$f":"'Terre, Vie et Vivant'!C8","v":0},{"$f":"'Terre, Vie et Vivant'!D8","v":0},{"$f":"'Terre, Vie et Vivant'!E8","v":0},{"$f":"'Terre, Vie et Vivant'!F8","v":0},{"$f":"'Terre, Vie et Vivant'!I8","v":0},{"$f":"'Terre, Vie et Vivant'!L8","v":0},{"$f":"'Terre, Vie et Vivant'!O8","v":0},{"$f":"'Terre, Vie et Vivant'!R8","v":0},{"$f":"'Terre, Vie et Vivant'!U8","v":0}]
[{"$f":"'Terre, Vie et Vivant'!A9","v":0},{"$f":"'Terre, Vie et Vivant'!B9","v":0},{"$f":"'Terre, Vie et Vivant'!C9","v":0},{"$f":"'Terre, Vie et Vivant'!D9","v":0},{"$f":"'Terre, Vie et Vivant'!E9","v":0},{"$f":"'Terre, Vie et Vivant'!F9","v":0},{"$f":"'Terre, Vie et Vivant'!I9","v":0},{"$f":"'Terre, Vie et Vivant'!L9","v":0},{"$f":"'Terre, Vie et Vivant'!O9","v":0},{"$f":"'Terre, Vie et Vivant'!R9","v":0},{"$f":"'Terre, Vie et Vivant'!U9","v":0}]
[{"$f":"'Terre, Vie et Vivant'!A10","v":0},{"$f":"'Terre, Vie et Vivant'!B10","v":0},{"$f":"'Terre, Vie et Vivant'!C10","v":0},{"$f":"'Terre, Vie et Vivant'!D10","v":0},{"$f":"'Terre, Vie et Vivant'!E10","v":0},{"$f":"'Terre, Vie et Vivant'!F10","v":0},{"$f":"'Terre, Vie et Vivant'!I10","v":0},{"$f":"'Terre, Vie et Vivant'!L10","v":0},{"$f":"'Terre, Vie et Vivant'!O10","v":0},{"$f":"'Terre, Vie et Vivant'!R10","v":0},{"$f":"'Terre, Vie et Vivant'!U10","v":0}]
[{"$f":"'Terre, Vie et Vivant'!A11","v":0},{"$f":"'Terre, Vie et Vivant'!B11","v":0},{"$f":"'Terre, Vie et Vivant'!C11","v":0},{"$f":"'Terre, Vie et Vivant'!D11","v":0},{"$f":"'Terre, Vie et Vivant'!E11","v":0},{"$f":"'Terre, Vie et Vivant'!F11","v":0},{"$f":"'Terre, Vie et Vivant'!I11","v":0},{"$f":"'Terre, Vie et Vivant'!L11","v":0},{"$f":"'Terre, Vie et Vivant'!O11","v":0},{"$f":"'Terre, Vie et Vivant'!R11","v":0},{"$f":"'Terre, Vie et Vivant'!U11","v":0}]
[{"$f":"'Terre, Vie et Vivant'!A12","v":0},{"$f":"'Terre, Vie et Vivant'!B12","v":0},{"$f":"'Terre, Vie et Vivant'!C12","v":0},{"$f":"'Terre, Vie et Vivant'!D12","v":0},{"$f":"'Terre, Vie et Vivant'!E12","v":0},{"$f":"'Terre, Vie et Vivant'!F12","v":0},{"$f":"'Terre, Vie et Vivant'!I12","v":0},{"$f":"'Terre, Vie et Vivant'!L12","v":0},{"$f":"'Terre, Vie et Vivant'!O12","v":0},{"$f":"'Terre, Vie et Vivant'!R12","v":0},{"$f":"'Terre, Vie et Vivant'!U12","v":0}]
[{"$f":"'Terre, Vie et Vivant'!A13","v":0},{"$f":"'Terre, Vie et Vivant'!B13","v":0},{"$f":"'Terre, Vie et Vivant'!C13","v":0},{"$f":"'Terre, Vie et Vivant'!D13","v":0},{"$f":"'Terre, Vie et Vivant'!E13","v":0},{"$f":"'Terre, Vie et Vivant'!F13","v":0},{"$f":"'Terre, Vie et Vivant'!I13","v":0},{"$f":"'Terre, Vie et Vivant'!L13","v":0},{"$f":"'Terre, Vie et Vivant'!O13","v":0},{"$f":"'Terre, Vie et Vivant'!R13","v":0},{"$f":"'Terre, Vie et Vivant'!U13","v":0}]
[{"$f":"'Terre, Vie et Vivant'!A14","v":0},{"$f":"'Terre, Vie et Vivant'!B14","v":0},{"$f":"'Terre, Vie et Vivant'!C14","v":0},{"$f":"'Terre, Vie et Vivant'!D14","v":0},{"$f":"'Terre, Vie et Vivant'!E14","v":0},{"$f":"'Terre, Vie et Vivant'!F14","v":0},{"$f":"'Terre, Vie et Vivant'!I14","v":0},{"$f":"'Terre, Vie et Vivant'!L14","v":0},{"$f":"'Terre, Vie et Vivant'!O14","v":0},{"$f":"'Terre, Vie et Vivant'!R14","v":0},{"$f":"'Terre, Vie et Vivant'!U14","v":0}]
[{"$f":"'Terre, Vie et Vivant'!A15","v":0},{"$f":"'Terre, Vie et Vivant'!B15","v":0},{"$f":"'Terre, Vie et Vivant'!C15","v":0},{"$f":"'Terre, Vie et Vivant'!D15","v":0},{"$f":"'Terre, Vie et Vivant'!E15","v":0},{"$f":"'Terre, Vie et Vivant'!F15","v":0},{"$f":"'Terre, Vie et Vivant'!I15","v":0},{"$f":"'Terre, Vie et Vivant'!L15","v":0},{"$f":"'Terre, Vie et Vivant'!O15","v":0},{"$f":"'Terre, Vie et Vivant'!R15","v":0},{"$f":"'Terre, Vie et Vivant'!U15","v":0}]
[{"$f":"'Terre, Vie et Vivant'!A16","v":0},{"$f":"'Terre, Vie et Vivant'!B16","v":0},{"$f":"'Terre, Vie et Vivant'!C16","v":0},{"$f":"'Terre, Vie et Vivant'!D16","v":0},{"$f":"'Terre, Vie et Vivant'!E16","v":0},{"$f":"'Terre, Vie et Vivant'!F16","v":0},{"$f":"'Terre, Vie et Vivant'!I16","v":0},{"$f":"'Terre, Vie et Vivant'!L16","v":0},{"$f":"'Terre, Vie et Vivant'!O16","v":0},{"$f":"'Terre, Vie et Vivant'!R16","v":0},{"$f":"'Terre, Vie et Vivant'!U16","v":0}]
[{"$f":"'Terre, Vie et Vivant'!A17","v":0},{"$f":"'Terre, Vie et Vivant'!B17","v":0},{"$f":"'Terre, Vie et Vivant'!C17","v":0},{"$f":"'Terre, Vie et Vivant'!D17","v":0},{"$f":"'Terre, Vie et Vivant'!E17","v":0},{"$f":"'Terre, Vie et Vivant'!F17","v":0},{"$f":"'Terre, Vie et Vivant'!I17","v":0},{"$f":"'Terre, Vie et Vivant'!L17","v":0},{"$f":"'Terre, Vie et Vivant'!O17","v":0},{"$f":"'Terre, Vie et Vivant'!R17","v":0},{"$f":"'Terre, Vie et Vivant'!U17","v":0}]
[{"$f":"'Terre, Vie et Vivant'!A18","v":0},{"$f":"'Terre, Vie et Vivant'!B18","v":0},{"$f":"'Terre, Vie et Vivant'!C18","v":0},{"$f":"'Terre, Vie et Vivant'!D18","v":0},{"$f":"'Terre, Vie et Vivant'!E18","v":0},{"$f":"'Terre, Vie et Vivant'!F18","v":0},{"$f":"'Terre, Vie et Vivant'!I18","v":0},{"$f":"'Terre, Vie et Vivant'!L18","v":0},{"$f":"'Terre, Vie et Vivant'!O18","v":0},{"$f":"'Terre, Vie et Vivant'!R18","v":0},{"$f":"'Terre, Vie et Vivant'!U18","v":0}]
[{"$f":"'Terre, Vie et Vivant'!A19","v":0},{"$f":"'Terre, Vie et Vivant'!B19","v":0},{"$f":"'Terre, Vie et Vivant'!C19","v":0},{"$f":"'Terre, Vie et Vivant'!D19","v":0},{"$f":"'Terre, Vie et Vivant'!E19","v":0},{"$f":"'Terre, Vie et Vivant'!F19","v":0},{"$f":"'Terre, Vie et Vivant'!I19","v":0},{"$f":"'Terre, Vie et Vivant'!L19","v":0},{"$f":"'Terre, Vie et Vivant'!O19","v":0},{"$f":"'Terre, Vie et Vivant'!R19","v":0},{"$f":"'Terre, Vie et Vivant'!U19","v":0}]
[{"$f":"'Terre, Vie et Vivant'!A20","v":0},{"$f":"'Terre, Vie et Vivant'!B20","v":0},{"$f":"'Terre, Vie et Vivant'!C20","v":0},{"$f":"'Terre, Vie et Vivant'!D20","v":0},{"$f":"'Terre, Vie et Vivant'!E20","v":0},{"$f":"'Terre, Vie et Vivant'!F20","v":0},{"$f":"'Terre, Vie et Vivant'!I20","v":0},{"$f":"'Terre, Vie et Vivant'!L20","v":0},{"$f":"'Terre, Vie et Vivant'!O20","v":0},{"$f":"'Terre, Vie et Vivant'!R20","v":0},{"$f":"'Terre, Vie et Vivant'!U20","v":0}]
[{"$f":"'Terre, Vie et Vivant'!A21","v":0},{"$f":"'Terre, Vie et Vivant'!B21","v":0},{"$f":"'Terre, Vie et Vivant'!C21","v":0},{"$f":"'Terre, Vie et Vivant'!D21","v":0},{"$f":"'Terre, Vie et Vivant'!E21","v":0},{"$f":"'Terre, Vie et Vivant'!F21","v":0},{"$f":"'Terre, Vie et Vivant'!I21","v":0},{"$f":"'Terre, Vie et Vivant'!L21","v":0},{"$f":"'Terre, Vie et Vivant'!O21","v":0},{"$f":"'Terre, Vie et Vivant'!R21","v":0},{"$f":"'Terre, Vie et Vivant'!U21","v":0}]
[{"$f":"'Terre, Vie et Vivant'!A22","v":0},{"$f":"'Terre, Vie et Vivant'!B22","v":0},{"$f":"'Terre, Vie et Vivant'!C22","v":0},{"$f":"'Terre, Vie et Vivant'!D22","v":0},{"$f":"'Terre, Vie et Vivant'!E22","v":0},{"$f":"'Terre, Vie et Vivant'!F22","v":0},{"$f":"'Terre, Vie et Vivant'!I22","v":0},{"$f":"'Terre, Vie et Vivant'!L22","v":0},{"$f":"'Terre, Vie et Vivant'!O22","v":0},{"$f":"'Terre, Vie et Vivant'!R22","v":0},{"$f":"'Terre, Vie et Vivant'!U22","v":0}]
[{"$f":"'Terre, Vie et Vivant'!A23","v":0},{"$f":"'Terre, Vie et Vivant'!B23","v":0},{"$f":"'Terre, Vie et Vivant'!C23","v":0},{"$f":"'Terre, Vie et Vivant'!D23","v":0},{"$f":"'Terre, Vie et Vivant'!E23","v":0},{"$f":"'Terre, Vie et Vivant'!F23","v":0},{"$f":"'Terre, Vie et Vivant'!I23","v":0},{"$f":"'Terre, Vie et Vivant'!L23","v":0},{"$f":"'Terre, Vie et Vivant'!O23","v":0},{"$f":"'Terre, Vie et Vivant'!R23","v":0},{"$f":"'Terre, Vie et Vivant'!U23","v":0}]
[{"$f":"'Terre, Vie et Vivant'!A24","v":0},{"$f":"'Terre, Vie et Vivant'!B24","v":0},{"$f":"'Terre, Vie et Vivant'!C24","v":0},{"$f":"'Terre, Vie et Vivant'!D24","v":0},{"$f":"'Terre, Vie et Vivant'!E24","v":0},{"$f":"'Terre, Vie et Vivant'!F24","v":0},{"$f":"'Terre, Vie et Vivant'!I24","v":0},{"$f":"'Terre, Vie et Vivant'!L24","v":0},{"$f":"'Terre, Vie et Vivant'!O24","v":0},{"$f":"'Terre, Vie et Vivant'!R24","v":0},{"$f":"'Terre, Vie et Vivant'!U24","v":0}]
[{"$f":"'Terre, Vie et Vivant'!A25","v":0},{"$f":"'Terre, Vie et Vivant'!B25","v":0},{"$f":"'Terre, Vie et Vivant'!C25","v":0},{"$f":"'Terre, Vie et Vivant'!D25","v":0},{"$f":"'Terre, Vie et Vivant'!E25","v":0},{"$f":"'Terre, Vie et Vivant'!F25","v":0},{"$f":"'Terre, Vie et Vivant'!I25","v":0},{"$f":"'Terre, Vie et Vivant'!L25","v":0},{"$f":"'Terre, Vie et Vivant'!O25","v":0},{"$f":"'Terre, Vie et Vivant'!R25","v":0},{"$f":"'Terre, Vie et Vivant'!U25","v":0}]
[{"$f":"'Terre, Vie et Vivant'!A26","v":0},{"$f":"'Terre, Vie et Vivant'!B26","v":0},{"$f":"'Terre, Vie et Vivant'!C26","v":0},{"$f":"'Terre, Vie et Vivant'!D26","v":0},{"$f":"'Terre, Vie et Vivant'!E26","v":0},{"$f":"'Terre, Vie et Vivant'!F26","v":0},{"$f":"'Terre, Vie et Vivant'!I26","v":0},{"$f":"'Terre, Vie et Vivant'!L26","v":0},{"$f":"'Terre, Vie et Vivant'!O26","v":0},{"$f":"'Terre, Vie et Vivant'!R26","v":0},{"$f":"'Terre, Vie et Vivant'!U26","v":0}]
[{"$f":"'Terre, Vie et Vivant'!A27","v":0},{"$f":"'Terre, Vie et Vivant'!B27","v":0},{"$f":"'Terre, Vie et Vivant'!C27","v":0},{"$f":"'Terre, Vie et Vivant'!D27","v":0},{"$f":"'Terre, Vie et Vivant'!E27","v":0},{"$f":"'Terre, Vie et Vivant'!F27","v":0},{"$f":"'Terre, Vie et Vivant'!I27","v":0},{"$f":"'Terre, Vie et Vivant'!L27","v":0},{"$f":"'Terre, Vie et Vivant'!O27","v":0},{"$f":"'Terre, Vie et Vivant'!R27","v":0},{"$f":"'Terre, Vie et Vivant'!U27","v":0}]
[{"$f":"'Terre, Vie et Vivant'!A28","v":0},{"$f":"'Terre, Vie et Vivant'!B28","v":0},{"$f":"'Terre, Vie et Vivant'!C28","v":0},{"$f":"'Terre, Vie et Vivant'!D28","v":0},{"$f":"'Terre, Vie et Vivant'!E28","v":0},{"$f":"'Terre, Vie et Vivant'!F28","v":0},{"$f":"'Terre, Vie et Vivant'!I28","v":0},{"$f":"'Terre, Vie et Vivant'!L28","v":0},{"$f":"'Terre, Vie et Vivant'!O28","v":0},{"$f":"'Terre, Vie et Vivant'!R28","v":0},{"$f":"'Terre, Vie et Vivant'!U28","v":0}]
[{"$f":"'Terre, Vie et Vivant'!A29","v":0},{"$f":"'Terre, Vie et Vivant'!B29","v":0},{"$f":"'Terre, Vie et Vivant'!C29","v":0},{"$f":"'Terre, Vie et Vivant'!D29","v":0},{"$f":"'Terre, Vie et Vivant'!E29","v":0},{"$f":"'Terre, Vie et Vivant'!F29","v":0},{"$f":"'Terre, Vie et Vivant'!I29","v":0},{"$f":"'Terre, Vie et Vivant'!L29","v":0},{"$f":"'Terre, Vie et Vivant'!O29","v":0},{"$f":"'Terre, Vie et Vivant'!R29","v":0},{"$f":"'Terre, Vie et Vivant'!U29","v":0}]
[{"$f":"'Terre, Vie et Vivant'!A30","v":0},{"$f":"'Terre, Vie et Vivant'!B30","v":0},{"$f":"'Terre, Vie et Vivant'!C30","v":0},{"$f":"'Terre, Vie et Vivant'!D30","v":0},{"$f":"'Terre, Vie et Vivant'!E30","v":0},{"$f":"'Terre, Vie et Vivant'!F30","v":0},{"$f":"'Terre, Vie et Vivant'!I30","v":0},{"$f":"'Terre, Vie et Vivant'!L30","v":0},{"$f":"'Terre, Vie et Vivant'!O30","v":0},{"$f":"'Terre, Vie et Vivant'!R30","v":0},{"$f":"'Terre, Vie et Vivant'!U30","v":0}]
[{"$f":"'Terre, Vie et Vivant'!A31","v":0},{"$f":"'Terre, Vie et Vivant'!B31","v":0},{"$f":"'Terre, Vie et Vivant'!C31","v":0},{"$f":"'Terre, Vie et Vivant'!D31","v":0},{"$f":"'Terre, Vie et Vivant'!E31","v":0},{"$f":"'Terre, Vie et Vivant'!F31","v":0},{"$f":"'Terre, Vie et Vivant'!I31","v":0},{"$f":"'Terre, Vie et Vivant'!L31","v":0},{"$f":"'Terre, Vie et Vivant'!O31","v":0},{"$f":"'Terre, Vie et Vivant'!R31","v":0},{"$f":"'Terre, Vie et Vivant'!U31","v":0}]
[{"$f":"'Terre, Vie et Vivant'!A32","v":0},{"$f":"'Terre, Vie et Vivant'!B32","v":0},{"$f":"'Terre, Vie et Vivant'!C32","v":0},{"$f":"'Terre, Vie et Vivant'!D32","v":0},{"$f":"'Terre, Vie et Vivant'!E32","v":0},{"$f":"'Terre, Vie et Vivant'!F32","v":0},{"$f":"'Terre, Vie et Vivant'!I32","v":0},{"$f":"'Terre, Vie et Vivant'!L32","v":0},{"$f":"'Terre, Vie et Vivant'!O32","v":0},{"$f":"'Terre, Vie et Vivant'!R32","v":0},{"$f":"'Terre, Vie et Vivant'!U32","v":0}]
[{"$f":"'Terre, Vie et Vivant'!A33","v":0},{"$f":"'Terre, Vie et Vivant'!B33","v":0},{"$f":"'Terre, Vie et Vivant'!C33","v":0},{"$f":"'Terre, Vie et Vivant'!D33","v":0},{"$f":"'Terre, Vie et Vivant'!E33","v":0},{"$f":"'Terre, Vie et Vivant'!F33","v":0},{"$f":"'Terre, Vie et Vivant'!I33","v":0},{"$f":"'Terre, Vie et Vivant'!L33","v":0},{"$f":"'Terre, Vie et Vivant'!O33","v":0},{"$f":"'Terre, Vie et Vivant'!R33","v":0},{"$f":"'Terre, Vie et Vivant'!U33","v":0}]
[{"$f":"'Terre, Vie et Vivant'!A34","v":0},{"$f":"'Terre, Vie et Vivant'!B34","v":0},{"$f":"'Terre, Vie et Vivant'!C34","v":0},{"$f":"'Terre, Vie et Vivant'!D34","v":0},{"$f":"'Terre, Vie et Vivant'!E34","v":0},{"$f":"'Terre, Vie et Vivant'!F34","v":0},{"$f":"'Terre, Vie et Vivant'!I34","v":0},{"$f":"'Terre, Vie et Vivant'!L34","v":0},{"$f":"'Terre, Vie et Vivant'!O34","v":0},{"$f":"'Terre, Vie et Vivant'!R34","v":0},{"$f":"'Terre, Vie et Vivant'!U34","v":0}]
[{"$f":"'Terre, Vie et Vivant'!A35","v":0},{"$f":"'Terre, Vie et Vivant'!B35","v":0},{"$f":"'Terre, Vie et Vivant'!C35","v":0},{"$f":"'Terre, Vie et Vivant'!D35","v":0},{"$f":"'Terre, Vie et Vivant'!E35","v":0},{"$f":"'Terre, Vie et Vivant'!F35","v":0},{"$f":"'Terre, Vie et Vivant'!I35","v":0},{"$f":"'Terre, Vie et Vivant'!L35","v":0},{"$f":"'Terre, Vie et Vivant'!O35","v":0},{"$f":"'Terre, Vie et Vivant'!R35","v":0},{"$f":"'Terre, Vie et Vivant'!U35","v":0}]
[{"$f":"'Terre, Vie et Vivant'!A36","v":0},{"$f":"'Terre, Vie et Vivant'!B36","v":0},{"$f":"'Terre, Vie et Vivant'!C36","v":0},{"$f":"'Terre, Vie et Vivant'!D36","v":0},{"$f":"'Terre, Vie et Vivant'!E36","v":0},{"$f":"'Terre, Vie et Vivant'!F36","v":0},{"$f":"'Terre, Vie et Vivant'!I36","v":0},{"$f":"'Terre, Vie et Vivant'!L36","v":0},{"$f":"'Terre, Vie et Vivant'!O36","v":0},{"$f":"'Terre, Vie et Vivant'!R36","v":0},{"$f":"'Terre, Vie et Vivant'!U36","v":0}]
[{"$f":"'Terre, Vie et Vivant'!A37","v":0},{"$f":"'Terre, Vie et Vivant'!B37","v":0},{"$f":"'Terre, Vie et Vivant'!C37","v":0},{"$f":"'Terre, Vie et Vivant'!D37","v":0},{"$f":"'Terre, Vie et Vivant'!E37","v":0},{"$f":"'Terre, Vie et Vivant'!F37","v":0},{"$f":"'Terre, Vie et Vivant'!I37","v":0},{"$f":"'Terre, Vie et Vivant'!L37","v":0},{"$f":"'Terre, Vie et Vivant'!O37","v":0},{"$f":"'Terre, Vie et Vivant'!R37","v":0},{"$f":"'Terre, Vie et Vivant'!U37","v":0}]
[{"$f":"'Terre, Vie et Vivant'!A38","v":0},{"$f":"'Terre, Vie et Vivant'!B38","v":0},{"$f":"'Terre, Vie et Vivant'!C38","v":0},{"$f":"'Terre, Vie et Vivant'!D38","v":0},{"$f":"'Terre, Vie et Vivant'!E38","v":0},{"$f":"'Terre, Vie et Vivant'!F38","v":0},{"$f":"'Terre, Vie et Vivant'!I38","v":0},{"$f":"'Terre, Vie et Vivant'!L38","v":0},{"$f":"'Terre, Vie et Vivant'!O38","v":0},{"$f":"'Terre, Vie et Vivant'!R38","v":0},{"$f":"'Terre, Vie et Vivant'!U38","v":0}]
[{"$f":"'Terre, Vie et Vivant'!A39","v":0},{"$f":"'Terre, Vie et Vivant'!B39","v":0},{"$f":"'Terre, Vie et Vivant'!C39","v":0},{"$f":"'Terre, Vie et Vivant'!D39","v":0},{"$f":"'Terre, Vie et Vivant'!E39","v":0},{"$f":"'Terre, Vie et Vivant'!F39","v":0},{"$f":"'Terre, Vie et Vivant'!I39","v":0},{"$f":"'Terre, Vie et Vivant'!L39","v":0},{"$f":"'Terre, Vie et Vivant'!O39","v":0},{"$f":"'Terre, Vie et Vivant'!R39","v":0},{"$f":"'Terre, Vie et Vivant'!U39","v":0}]
[{"$f":"'Terre, Vie et Vivant'!A40","v":0},{"$f":"'Terre, Vie et Vivant'!B40","v":0},{"$f":"'Terre, Vie et Vivant'!C40","v":0},{"$f":"'Terre, Vie et Vivant'!D40","v":0},{"$f":"'Terre, Vie et Vivant'!E40","v":0},{"$f":"'Terre, Vie et Vivant'!F40","v":0},{"$f":"'Terre, Vie et Vivant'!I40","v":0},{"$f":"'Terre, Vie et Vivant'!L40","v":0},{"$f":"'Terre, Vie et Vivant'!O40","v":0},{"$f":"'Terre, Vie et Vivant'!R40","v":0},{"$f":"'Terre, Vie et Vivant'!U40","v":0}]
[{"$f":"'Terre, Vie et Vivant'!A41","v":0},{"$f":"'Terre, Vie et Vivant'!B41","v":0},{"$f":"'Terre, Vie et Vivant'!C41","v":0},{"$f":"'Terre, Vie et Vivant'!D41","v":0},{"$f":"'Terre, Vie et Vivant'!E41","v":0},{"$f":"'Terre, Vie et Vivant'!F41","v":0},{"$f":"'Terre, Vie et Vivant'!I41","v":0},{"$f":"'Terre, Vie et Vivant'!L41","v":0},{"$f":"'Terre, Vie et Vivant'!O41","v":0},{"$f":"'Terre, Vie et Vivant'!R41","v":0},{"$f":"'Terre, Vie et Vivant'!U41","v":0}]
[{"$f":"Enjeux!A6","v":0},{"$f":"Enjeux!B6","v":0},{"$f":"Enjeux!C6","v":0},{"$f":"Enjeux!D6","v":0},{"$f":"Enjeux!E6","v":0},{"$f":"Enjeux!F6","v":0},{"$f":"Enjeux!I6","v":0},{"$f":"Enjeux!L6","v":0},{"$f":"Enjeux!O6","v":0},{"$f":"Enjeux!R6","v":0},{"$f":"Enjeux!U6","v":0}]
[{"$f":"Enjeux!A7","v":0},{"$f":"Enjeux!B7","v":0},{"$f":"Enjeux!C7","v":0},{"$f":"Enjeux!D7","v":0},{"$f":"Enjeux!E7","v":0},{"$f":"Enjeux!F7","v":0},{"$f":"Enjeux!I7","v":0},{"$f":"Enjeux!L7","v":0},{"$f":"Enjeux!O7","v":0},{"$f":"Enjeux!R7","v":0},{"$f":"Enjeux!U7","v":0}]
[{"$f":"Enjeux!A8","v":0},{"$f":"Enjeux!B8","v":0},{"$f":"Enjeux!C8","v":0},{"$f":"Enjeux!D8","v":0},{"$f":"Enjeux!E8","v":0},{"$f":"Enjeux!F8","v":0},{"$f":"Enjeux!I8","v":0},{"$f":"Enjeux!L8","v":0},{"$f":"Enjeux!O8","v":0},{"$f":"Enjeux!R8","v":0},{"$f":"Enjeux!U8","v":0}]
[{"$f":"Enjeux!A9","v":0},{"$f":"Enjeux!B9","v":0},{"$f":"Enjeux!C9","v":0},{"$f":"Enjeux!D9","v":0},{"$f":"Enjeux!E9","v":0},{"$f":"Enjeux!F9","v":0},{"$f":"Enjeux!I9","v":0},{"$f":"Enjeux!L9","v":0},{"$f":"Enjeux!O9","v":0},{"$f":"Enjeux!R9","v":0},{"$f":"Enjeux!U9","v":0}]
[{"$f":"Enjeux!A10","v":0},{"$f":"Enjeux!B10","v":0},{"$f":"Enjeux!C10","v":0},{"$f":"Enjeux!D10","v":0},{"$f":"Enjeux!E10","v":0},{"$f":"Enjeux!F10","v":0},{"$f":"Enjeux!I10","v":0},{"$f":"Enjeux!L10","v":0},{"$f":"Enjeux!O10","v":0},{"$f":"Enjeux!R10","v":0},{"$f":"Enjeux!U10","v":0}]
[{"$f":"Enjeux!A11","v":0},{"$f":"Enjeux!B11","v":0},{"$f":"Enjeux!C11","v":0},{"$f":"Enjeux!D11","v":0},{"$f":"Enjeux!E11","v":0},{"$f":"Enjeux!F11","v":0},{"$f":"Enjeux!I11","v":0},{"$f":"Enjeux!L11","v":0},{"$f":"Enjeux!O11","v":0},{"$f":"Enjeux!R11","v":0},{"$f":"Enjeux!U11","v":0}]
[{"$f":"Enjeux!A12","v":0},{"$f":"Enjeux!B12","v":0},{"$f":"Enjeux!C12","v":0},{"$f":"Enjeux!D12","v":0},{"$f":"Enjeux!E12","v":0},{"$f":"Enjeux!F12","v":0},{"$f":"Enjeux!I12","v":0},{"$f":"Enjeux!L12","v":0},{"$f":"Enjeux!O12","v":0},{"$f":"Enjeux!R12","v":0},{"$f":"Enjeux!U12","v":0}]
[{"$f":"Enjeux!A13","v":0},{"$f":"Enjeux!B13","v":0},{"$f":"Enjeux!C13","v":0},{"$f":"Enjeux!D13","v":0},{"$f":"Enjeux!E13","v":0},{"$f":"Enjeux!F13","v":0},{"$f":"Enjeux!I13","v":0},{"$f":"Enjeux!L13","v":0},{"$f":"Enjeux!O13","v":0},{"$f":"Enjeux!R13","v":0},{"$f":"Enjeux!U13","v":0}]
[{"$f":"Enjeux!A14","v":0},{"$f":"Enjeux!B14","v":0},{"$f":"Enjeux!C14","v":0},{"$f":"Enjeux!D14","v":0},{"$f":"Enjeux!E14","v":0},{"$f":"Enjeux!F14","v":0},{"$f":"Enjeux!I14","v":0},{"$f":"Enjeux!L14","v":0},{"$f":"Enjeux!O14","v":0},{"$f":"Enjeux!R14","v":0},{"$f":"Enjeux!U14","v":0}]
[{"$f":"Enjeux!A15","v":0},{"$f":"Enjeux!B15","v":0},{"$f":"Enjeux!C15","v":0},{"$f":"Enjeux!D15","v":0},{"$f":"Enjeux!E15","v":0},{"$f":"Enjeux!F15","v":0},{"$f":"Enjeux!I15","v":0},{"$f":"Enjeux!L15","v":0},{"$f":"Enjeux!O15","v":0},{"$f":"Enjeux!R15","v":0},{"$f":"Enjeux!U15","v":0}]
[{"$f":"Enjeux!A16","v":0},{"$f":"Enjeux!B16","v":0},{"$f":"Enjeux!C16","v":0},{"$f":"Enjeux!D16","v":0},{"$f":"Enjeux!E16","v":0},{"$f":"Enjeux!F16","v":0},{"$f":"Enjeux!I16","v":0},{"$f":"Enjeux!L16","v":0},{"$f":"Enjeux!O16","v":0},{"$f":"Enjeux!R16","v":0},{"$f":"Enjeux!U16","v":0}]
[{"$f":"Enjeux!A17","v":0},{"$f":"Enjeux!B17","v":0},{"$f":"Enjeux!C17","v":0},{"$f":"Enjeux!D17","v":0},{"$f":"Enjeux!E17","v":0},{"$f":"Enjeux!F17","v":0},{"$f":"Enjeux!I17","v":0},{"$f":"Enjeux!L17","v":0},{"$f":"Enjeux!O17","v":0},{"$f":"Enjeux!R17","v":0},{"$f":"Enjeux!U17","v":0}]
[{"$f":"Enjeux!A18","v":0},{"$f":"Enjeux!B18","v":0},{"$f":"Enjeux!C18","v":0},{"$f":"Enjeux!D18","v":0},{"$f":"Enjeux!E18","v":0},{"$f":"Enjeux!F18","v":0},{"$f":"Enjeux!I18","v":0},{"$f":"Enjeux!L18","v":0},{"$f":"Enjeux!O18","v":0},{"$f":"Enjeux!R18","v":0},{"$f":"Enjeux!U18","v":0}]
[{"$f":"Enjeux!A19","v":0},{"$f":"Enjeux!B19","v":0},{"$f":"Enjeux!C19","v":0},{"$f":"Enjeux!D19","v":0},{"$f":"Enjeux!E19","v":0},{"$f":"Enjeux!F19","v":0},{"$f":"Enjeux!I19","v":0},{"$f":"Enjeux!L19","v":0},{"$f":"Enjeux!O19","v":0},{"$f":"Enjeux!R19","v":0},{"$f":"Enjeux!U19","v":0}]
[{"$f":"Enjeux!A20","v":0},{"$f":"Enjeux!B20","v":0},{"$f":"Enjeux!C20","v":0},{"$f":"Enjeux!D20","v":0},{"$f":"Enjeux!E20","v":0},{"$f":"Enjeux!F20","v":0},{"$f":"Enjeux!I20","v":0},{"$f":"Enjeux!L20","v":0},{"$f":"Enjeux!O20","v":0},{"$f":"Enjeux!R20","v":0},{"$f":"Enjeux!U20","v":0}]
[{"$f":"Enjeux!A21","v":0},{"$f":"Enjeux!B21","v":0},{"$f":"Enjeux!C21","v":0},{"$f":"Enjeux!D21","v":0},{"$f":"Enjeux!E21","v":0},{"$f":"Enjeux!F21","v":0},{"$f":"Enjeux!I21","v":0},{"$f":"Enjeux!L21","v":0},{"$f":"Enjeux!O21","v":0},{"$f":"Enjeux!R21","v":0},{"$f":"Enjeux!U21","v":0}]
[{"$f":"Enjeux!A22","v":0},{"$f":"Enjeux!B22","v":0},{"$f":"Enjeux!C22","v":0},{"$f":"Enjeux!D22","v":0},{"$f":"Enjeux!E22","v":0},{"$f":"Enjeux!F22","v":0},{"$f":"Enjeux!I22","v":0},{"$f":"Enjeux!L22","v":0},{"$f":"Enjeux!O22","v":0},{"$f":"Enjeux!R22","v":0},{"$f":"Enjeux!U22","v":0}]
[{"$f":"Enjeux!A23","v":0},{"$f":"Enjeux!B23","v":0},{"$f":"Enjeux!C23","v":0},{"$f":"Enjeux!D23","v":0},{"$f":"Enjeux!E23","v":0},{"$f":"Enjeux!F23","v":0},{"$f":"Enjeux!I23","v":0},{"$f":"Enjeux!L23","v":0},{"$f":"Enjeux!O23","v":0},{"$f":"Enjeux!R23","v":0},{"$f":"Enjeux!U23","v":0}]
[{"$f":"Enjeux!A24","v":0},{"$f":"Enjeux!B24","v":0},{"$f":"Enjeux!C24","v":0},{"$f":"Enjeux!D24","v":0},{"$f":"Enjeux!E24","v":0},{"$f":"Enjeux!F24","v":0},{"$f":"Enjeux!I24","v":0},{"$f":"Enjeux!L24","v":0},{"$f":"Enjeux!O24","v":0},{"$f":"Enjeux!R24","v":0},{"$f":"Enjeux!U24","v":0}]
[{"$f":"Enjeux!A25","v":0},{"$f":"Enjeux!B25","v":0},{"$f":"Enjeux!C25","v":0},{"$f":"Enjeux!D25","v":0},{"$f":"Enjeux!E25","v":0},{"$f":"Enjeux!F25","v":0},{"$f":"Enjeux!I25","v":0},{"$f":"Enjeux!L25","v":0},{"$f":"Enjeux!O25","v":0},{"$f":"Enjeux!R25","v":0},{"$f":"Enjeux!U25","v":0}]
[{"$f":"Enjeux!A26","v":0},{"$f":"Enjeux!B26","v":0},{"$f":"Enjeux!C26","v":0},{"$f":"Enjeux!D26","v":0},{"$f":"Enjeux!E26","v":0},{"$f":"Enjeux!F26","v":0},{"$f":"Enjeux!I26","v":0},{"$f":"Enjeux!L26","v":0},{"$f":"Enjeux!O26","v":0},{"$f":"Enjeux!R26","v":0},{"$f":"Enjeux!U26","v":0}]
[{"$f":"Enjeux!A27","v":0},{"$f":"Enjeux!B27","v":0},{"$f":"Enjeux!C27","v":0},{"$f":"Enjeux!D27","v":0},{"$f":"Enjeux!E27","v":0},{"$f":"Enjeux!F27","v":0},{"$f":"Enjeux!I27","v":0},{"$f":"Enjeux!L27","v":0},{"$f":"Enjeux!O27","v":0},{"$f":"Enjeux!R27","v":0},{"$f":"Enjeux!U27","v":0}]
[{"$f":"Enjeux!A28","v":0},{"$f":"Enjeux!B28","v":0},{"$f":"Enjeux!C28","v":0},{"$f":"Enjeux!D28","v":0},{"$f":"Enjeux!E28","v":0},{"$f":"Enjeux!F28","v":0},{"$f":"Enjeux!I28","v":0},{"$f":"Enjeux!L28","v":0},{"$f":"Enjeux!O28","v":0},{"$f":"Enjeux!R28","v":0},{"$f":"Enjeux!U28","v":0}]
[{"$f":"Enjeux!A29","v":0},{"$f":"Enjeux!B29","v":0},{"$f":"Enjeux!C29","v":0},{"$f":"Enjeux!D29","v":0},{"$f":"Enjeux!E29","v":0},{"$f":"Enjeux!F29","v":0},{"$f":"Enjeux!I29","v":0},{"$f":"Enjeux!L29","v":0},{"$f":"Enjeux!O29","v":0},{"$f":"Enjeux!R29","v":0},{"$f":"Enjeux!U29","v":0}]
[{"$f":"Enjeux!A30","v":0},{"$f":"Enjeux!B30","v":0},{"$f":"Enjeux!C30","v":0},{"$f":"Enjeux!D30","v":0},{"$f":"Enjeux!E30","v":0},{"$f":"Enjeux!F30","v":0},{"$f":"Enjeux!I30","v":0},{"$f":"Enjeux!L30","v":0},{"$f":"Enjeux!O30","v":0},{"$f":"Enjeux!R30","v":0},{"$f":"Enjeux!U30","v":0}]
[{"$f":"Enjeux!A31","v":0},{"$f":"Enjeux!B31","v":0},{"$f":"Enjeux!C31","v":0},{"$f":"Enjeux!D31","v":0},{"$f":"Enjeux!E31","v":0},{"$f":"Enjeux!F31","v":0},{"$f":"Enjeux!I31","v":0},{"$f":"Enjeux!L31","v":0},{"$f":"Enjeux!O31","v":0},{"$f":"Enjeux!R31","v":0},{"$f":"Enjeux!U31","v":0}]
[{"$f":"Enjeux!A32","v":0},{"$f":"Enjeux!B32","v":0},{"$f":"Enjeux!C32","v":0},{"$f":"Enjeux!D32","v":0},{"$f":"Enjeux!E32","v":0},{"$f":"Enjeux!F32","v":0},{"$f":"Enjeux!I32","v":0},{"$f":"Enjeux!L32","v":0},{"$f":"Enjeux!O32","v":0},{"$f":"Enjeux!R32","v":0},{"$f":"Enjeux!U32","v":0}]
[{"$f":"Enjeux!A33","v":0},{"$f":"Enjeux!B33","v":0},{"$f":"Enjeux!C33","v":0},{"$f":"Enjeux!D33","v":0},{"$f":"Enjeux!E33","v":0},{"$f":"Enjeux!F33","v":0},{"$f":"Enjeux!I33","v":0},{"$f":"Enjeux!L33","v":0},{"$f":"Enjeux!O33","v":0},{"$f":"Enjeux!R33","v":0},{"$f":"Enjeux!U33","v":0}]
[{"$f":"Enjeux!A34","v":0},{"$f":"Enjeux!B34","v":0},{"$f":"Enjeux!C34","v":0},{"$f":"Enjeux!D34","v":0},{"$f":"Enjeux!E34","v":0},{"$f":"Enjeux!F34","v":0},{"$f":"Enjeux!I34","v":0},{"$f":"Enjeux!L34","v":0},{"$f":"Enjeux!O34","v":0},{"$f":"Enjeux!R34","v":0},{"$f":"Enjeux!U34","v":0}]
[{"$f":"Enjeux!A35","v":0},{"$f":"Enjeux!B35","v":0},{"$f":"Enjeux!C35","v":0},{"$f":"Enjeux!D35","v":0},{"$f":"Enjeux!E35","v":0},{"$f":"Enjeux!F35","v":0},{"$f":"Enjeux!I35","v":0},{"$f":"Enjeux!L35","v":0},{"$f":"Enjeux!O35","v":0},{"$f":"Enjeux!R35","v":0},{"$f":"Enjeux!U35","v":0}]
[{"$f":"Enjeux!A36","v":0},{"$f":"Enjeux!B36","v":0},{"$f":"Enjeux!C36","v":0},{"$f":"Enjeux!D36","v":0},{"$f":"Enjeux!E36","v":0},{"$f":"Enjeux!F36","v":0},{"$f":"Enjeux!I36","v":0},{"$f":"Enjeux!L36","v":0},{"$f":"Enjeux!O36","v":0},{"$f":"Enjeux!R36","v":0},{"$f":"Enjeux!U36","v":0}]
[{"$f":"Enjeux!A37","v":0},{"$f":"Enjeux!B37","v":0},{"$f":"Enjeux!C37","v":0},{"$f":"Enjeux!D37","v":0},{"$f":"Enjeux!E37","v":0},{"$f":"Enjeux!F37","v":0},{"$f":"Enjeux!I37","v":0},{"$f":"Enjeux!L37","v":0},{"$f":"Enjeux!O37","v":0},{"$f":"Enjeux!R37","v":0},{"$f":"Enjeux!U37","v":0}]
[{"$f":"Enjeux!A38","v":0},{"$f":"Enjeux!B38","v":0},{"$f":"Enjeux!C38","v":0},{"$f":"Enjeux!D38","v":0},{"$f":"Enjeux!E38","v":0},{"$f":"Enjeux!F38","v":0},{"$f":"Enjeux!I38","v":0},{"$f":"Enjeux!L38","v":0},{"$f":"Enjeux!O38","v":0},{"$f":"Enjeux!R38","v":0},{"$f":"Enjeux!U38","v":0}]
[{"$f":"Enjeux!A39","v":0},{"$f":"Enjeux!B39","v":0},{"$f":"Enjeux!C39","v":0},{"$f":"Enjeux!D39","v":0},{"$f":"Enjeux!E39","v":0},{"$f":"Enjeux!F39","v":0},{"$f":"Enjeux!I39","v":0},{"$f":"Enjeux!L39","v":0},{"$f":"Enjeux!O39","v":0},{"$f":"Enjeux!R39","v":0},{"$f":"Enjeux!U39","v":0}]
[{"$f":"Enjeux!A40","v":0},{"$f":"Enjeux!B40","v":0},{"$f":"Enjeux!C40","v":0},{"$f":"Enjeux!D40","v":0},{"$f":"Enjeux!E40","v":0},{"$f":"Enjeux!F40","v":0},{"$f":"Enjeux!I40","v":0},{"$f":"Enjeux!L40","v":0},{"$f":"Enjeux!O40","v":0},{"$f":"Enjeux!R40","v":0},{"$f":"Enjeux!U40","v":0}]
[{"$f":"Enjeux!A41","v":0},{"$f":"Enjeux!B41","v":0},{"$f":"Enjeux!C41","v":0},{"$f":"Enjeux!D41","v":0},{"$f":"Enjeux!E41","v":0},{"$f":"Enjeux!F41","v":0},{"$f":"Enjeux!I41","v":0},{"$f":"Enjeux!L41","v":0},{"$f":"Enjeux!O41","v":0},{"$f":"Enjeux!R41","v":0},{"$f":"Enjeux!U41","v":0}]
[{"$f":"'Corps et Santé'!A6","v":0},{"$f":"'Corps et Santé'!B6","v":0},{"$f":"'Corps et Santé'!C6","v":0},{"$f":"'Corps et Santé'!D6","v":0},{"$f":"'Corps et Santé'!E6","v":0},{"$f":"'Corps et Santé'!F6","v":0},{"$f":"'Corps et Santé'!I6","v":0},{"$f":"'Corps et Santé'!L6","v":0},{"$f":"'Corps et Santé'!O6","v":0},{"$f":"'Corps et Santé'!R6","v":0},{"$f":"'Corps et Santé'!U6","v":0}]
[{"$f":"'Corps et Santé'!A7","v":0},{"$f":"'Corps et Santé'!B7","v":0},{"$f":"'Corps et Santé'!C7","v":0},{"$f":"'Corps et Santé'!D7","v":0},{"$f":"'Corps et Santé'!E7","v":0},{"$f":"'Corps et Santé'!F7","v":0},{"$f":"'Corps et Santé'!I7","v":0},{"$f":"'Corps et Santé'!L7","v":0},{"$f":"'Corps et Santé'!O7","v":0},{"$f":"'Corps et Santé'!R7","v":0},{"$f":"'Corps et Santé'!U7","v":0}]
[{"$f":"'Corps et Santé'!A8","v":0},{"$f":"'Corps et Santé'!B8","v":0},{"$f":"'Corps et Santé'!C8","v":0},{"$f":"'Corps et Santé'!D8","v":0},{"$f":"'Corps et Santé'!E8","v":0},{"$f":"'Corps et Santé'!F8","v":0},{"$f":"'Corps et Santé'!I8","v":0},{"$f":"'Corps et Santé'!L8","v":0},{"$f":"'Corps et Santé'!O8","v":0},{"$f":"'Corps et Santé'!R8","v":0},{"$f":"'Corps et Santé'!U8","v":0}]
[{"$f":"'Corps et Santé'!A9","v":0},{"$f":"'Corps et Santé'!B9","v":0},{"$f":"'Corps et Santé'!C9","v":0},{"$f":"'Corps et Santé'!D9","v":0},{"$f":"'Corps et Santé'!E9","v":0},{"$f":"'Corps et Santé'!F9","v":0},{"$f":"'Corps et Santé'!I9","v":0},{"$f":"'Corps et Santé'!L9","v":0},{"$f":"'Corps et Santé'!O9","v":0},{"$f":"'Corps et Santé'!R9","v":0},{"$f":"'Corps et Santé'!U9","v":0}]
[{"$f":"'Corps et Santé'!A10","v":0},{"$f":"'Corps et Santé'!B10","v":0},{"$f":"'Corps et Santé'!C10","v":0},{"$f":"'Corps et Santé'!D10","v":0},{"$f":"'Corps et Santé'!E10","v":0},{"$f":"'Corps et Santé'!F10","v":0},{"$f":"'Corps et Santé'!I10","v":0},{"$f":"'Corps et Santé'!L10","v":0},{"$f":"'Corps et Santé'!O10","v":0},{"$f":"'Corps et Santé'!R10","v":0},{"$f":"'Corps et Santé'!U10","v":0}]
[{"$f":"'Corps et Santé'!A11","v":0},{"$f":"'Corps et Santé'!B11","v":0},{"$f":"'Corps et Santé'!C11","v":0},{"$f":"'Corps et Santé'!D11","v":0},{"$f":"'Corps et Santé'!E11","v":0},{"$f":"'Corps et Santé'!F11","v":0},{"$f":"'Corps et Santé'!I11","v":0},{"$f":"'Corps et Santé'!L11","v":0},{"$f":"'Corps et Santé'!O11","v":0},{"$f":"'Corps et Santé'!R11","v":0},{"$f":"'Corps et Santé'!U11","v":0}]
[{"$f":"'Corps et Santé'!A12","v":0},{"$f":"'Corps et Santé'!B12","v":0},{"$f":"'Corps et Santé'!C12","v":0},{"$f":"'Corps et Santé'!D12","v":0},{"$f":"'Corps et Santé'!E12","v":0},{"$f":"'Corps et Santé'!F12","v":0},{"$f":"'Corps et Santé'!I12","v":0},{"$f":"'Corps et Santé'!L12","v":0},{"$f":"'Corps et Santé'!O12","v":0},{"$f":"'Corps et Santé'!R12","v":0},{"$f":"'Corps et Santé'!U12","v":0}]
[{"$f":"'Corps et Santé'!A13","v":0},{"$f":"'Corps et Santé'!B13","v":0},{"$f":"'Corps et Santé'!C13","v":0},{"$f":"'Corps et Santé'!D13","v":0},{"$f":"'Corps et Santé'!E13","v":0},{"$f":"'Corps et Santé'!F13","v":0},{"$f":"'Corps et Santé'!I13","v":0},{"$f":"'Corps et Santé'!L13","v":0},{"$f":"'Corps et Santé'!O13","v":0},{"$f":"'Corps et Santé'!R13","v":0},{"$f":"'Corps et Santé'!U13","v":0}]
[{"$f":"'Corps et Santé'!A14","v":0},{"$f":"'Corps et Santé'!B14","v":0},{"$f":"'Corps et Santé'!C14","v":0},{"$f":"'Corps et Santé'!D14","v":0},{"$f":"'Corps et Santé'!E14","v":0},{"$f":"'Corps et Santé'!F14","v":0},{"$f":"'Corps et Santé'!I14","v":0},{"$f":"'Corps et Santé'!L14","v":0},{"$f":"'Corps et Santé'!O14","v":0},{"$f":"'Corps et Santé'!R14","v":0},{"$f":"'Corps et Santé'!U14","v":0}]
[{"$f":"'Corps et Santé'!A15","v":0},{"$f":"'Corps et Santé'!B15","v":0},{"$f":"'Corps et Santé'!C15","v":0},{"$f":"'Corps et Santé'!D15","v":0},{"$f":"'Corps et Santé'!E15","v":0},{"$f":"'Corps et Santé'!F15","v":0},{"$f":"'Corps et Santé'!I15","v":0},{"$f":"'Corps et Santé'!L15","v":0},{"$f":"'Corps et Santé'!O15","v":0},{"$f":"'Corps et Santé'!R15","v":0},{"$f":"'Corps et Santé'!U15","v":0}]
[{"$f":"'Corps et Santé'!A16","v":0},{"$f":"'Corps et Santé'!B16","v":0},{"$f":"'Corps et Santé'!C16","v":0},{"$f":"'Corps et Santé'!D16","v":0},{"$f":"'Corps et Santé'!E16","v":0},{"$f":"'Corps et Santé'!F16","v":0},{"$f":"'Corps et Santé'!I16","v":0},{"$f":"'Corps et Santé'!L16","v":0},{"$f":"'Corps et Santé'!O16","v":0},{"$f":"'Corps et Santé'!R16","v":0},{"$f":"'Corps et Santé'!U16","v":0}]
[{"$f":"'Corps et Santé'!A17","v":0},{"$f":"'Corps et Santé'!B17","v":0},{"$f":"'Corps et Santé'!C17","v":0},{"$f":"'Corps et Santé'!D17","v":0},{"$f":"'Corps et Santé'!E17","v":0},{"$f":"'Corps et Santé'!F17","v":0},{"$f":"'Corps et Santé'!I17","v":0},{"$f":"'Corps et Santé'!L17","v":0},{"$f":"'Corps et Santé'!O17","v":0},{"$f":"'Corps et Santé'!R17","v":0},{"$f":"'Corps et Santé'!U17","v":0}]
[{"$f":"'Corps et Santé'!A18","v":0},{"$f":"'Corps et Santé'!B18","v":0},{"$f":"'Corps et Santé'!C18","v":0},{"$f":"'Corps et Santé'!D18","v":0},{"$f":"'Corps et Santé'!E18","v":0},{"$f":"'Corps et Santé'!F18","v":0},{"$f":"'Corps et Santé'!I18","v":0},{"$f":"'Corps et Santé'!L18","v":0},{"$f":"'Corps et Santé'!O18","v":0},{"$f":"'Corps et Santé'!R18","v":0},{"$f":"'Corps et Santé'!U18","v":0}]
[{"$f":"'Corps et Santé'!A19","v":0},{"$f":"'Corps et Santé'!B19","v":0},{"$f":"'Corps et Santé'!C19","v":0},{"$f":"'Corps et Santé'!D19","v":0},{"$f":"'Corps et Santé'!E19","v":0},{"$f":"'Corps et Santé'!F19","v":0},{"$f":"'Corps et Santé'!I19","v":0},{"$f":"'Corps et Santé'!L19","v":0},{"$f":"'Corps et Santé'!O19","v":0},{"$f":"'Corps et Santé'!R19","v":0},{"$f":"'Corps et Santé'!U19","v":0}]
[{"$f":"'Corps et Santé'!A20","v":0},{"$f":"'Corps et Santé'!B20","v":0},{"$f":"'Corps et Santé'!C20","v":0},{"$f":"'Corps et Santé'!D20","v":0},{"$f":"'Corps et Santé'!E20","v":0},{"$f":"'Corps et Santé'!F20","v":0},{"$f":"'Corps et Santé'!I20","v":0},{"$f":"'Corps et Santé'!L20","v":0},{"$f":"'Corps et Santé'!O20","v":0},{"$f":"'Corps et Santé'!R20","v":0},{"$f":"'Corps et Santé'!U20","v":0}]
[{"$f":"'Corps et Santé'!A21","v":0},{"$f":"'Corps et Santé'!B21","v":0},{"$f":"'Corps et Santé'!C21","v":0},{"$f":"'Corps et Santé'!D21","v":0},{"$f":"'Corps et Santé'!E21","v":0},{"$f":"'Corps et Santé'!F21","v":0},{"$f":"'Corps et Santé'!I21","v":0},{"$f":"'Corps et Santé'!L21","v":0},{"$f":"'Corps et Santé'!O21","v":0},{"$f":"'Corps et Santé'!R21","v":0},{"$f":"'Corps et Santé'!U21","v":0}]
[{"$f":"'Corps et Santé'!A22","v":0},{"$f":"'Corps et Santé'!B22","v":0},{"$f":"'Corps et Santé'!C22","v":0},{"$f":"'Corps et Santé'!D22","v":0},{"$f":"'Corps et Santé'!E22","v":0},{"$f":"'Corps et Santé'!F22","v":0},{"$f":"'Corps et Santé'!I22","v":0},{"$f":"'Corps et Santé'!L22","v":0},{"$f":"'Corps et Santé'!O22","v":0},{"$f":"'Corps et Santé'!R22","v":0},{"$f":"'Corps et Santé'!U22","v":0}]
[{"$f":"'Corps et Santé'!A23","v":0},{"$f":"'Corps et Santé'!B23","v":0},{"$f":"'Corps et Santé'!C23","v":0},{"$f":"'Corps et Santé'!D23","v":0},{"$f":"'Corps et Santé'!E23","v":0},{"$f":"'Corps et Santé'!F23","v":0},{"$f":"'Corps et Santé'!I23","v":0},{"$f":"'Corps et Santé'!L23","v":0},{"$f":"'Corps et Santé'!O23","v":0},{"$f":"'Corps et Santé'!R23","v":0},{"$f":"'Corps et Santé'!U23","v":0}]
[{"$f":"'Corps et Santé'!A24","v":0},{"$f":"'Corps et Santé'!B24","v":0},{"$f":"'Corps et Santé'!C24","v":0},{"$f":"'Corps et Santé'!D24","v":0},{"$f":"'Corps et Santé'!E24","v":0},{"$f":"'Corps et Santé'!F24","v":0},{"$f":"'Corps et Santé'!I24","v":0},{"$f":"'Corps et Santé'!L24","v":0},{"$f":"'Corps et Santé'!O24","v":0},{"$f":"'Corps et Santé'!R24","v":0},{"$f":"'Corps et Santé'!U24","v":0}]
[{"$f":"'Corps et Santé'!A25","v":0},{"$f":"'Corps et Santé'!B25","v":0},{"$f":"'Corps et Santé'!C25","v":0},{"$f":"'Corps et Santé'!D25","v":0},{"$f":"'Corps et Santé'!E25","v":0},{"$f":"'Corps et Santé'!F25","v":0},{"$f":"'Corps et Santé'!I25","v":0},{"$f":"'Corps et Santé'!L25","v":0},{"$f":"'Corps et Santé'!O25","v":0},{"$f":"'Corps et Santé'!R25","v":0},{"$f":"'Corps et Santé'!U25","v":0}]
[{"$f":"'Corps et Santé'!A26","v":0},{"$f":"'Corps et Santé'!B26","v":0},{"$f":"'Corps et Santé'!C26","v":0},{"$f":"'Corps et Santé'!D26","v":0},{"$f":"'Corps et Santé'!E26","v":0},{"$f":"'Corps et Santé'!F26","v":0},{"$f":"'Corps et Santé'!I26","v":0},{"$f":"'Corps et Santé'!L26","v":0},{"$f":"'Corps et Santé'!O26","v":0},{"$f":"'Corps et Santé'!R26","v":0},{"$f":"'Corps et Santé'!U26","v":0}]
[{"$f":"'Corps et Santé'!A27","v":0},{"$f":"'Corps et Santé'!B27","v":0},{"$f":"'Corps et Santé'!C27","v":0},{"$f":"'Corps et Santé'!D27","v":0},{"$f":"'Corps et Santé'!E27","v":0},{"$f":"'Corps et Santé'!F27","v":0},{"$f":"'Corps et Santé'!I27","v":0},{"$f":"'Corps et Santé'!L27","v":0},{"$f":"'Corps et Santé'!O27","v":0},{"$f":"'Corps et Santé'!R27","v":0},{"$f":"'Corps et Santé'!U27","v":0}]
[{"$f":"'Corps et Santé'!A28","v":0},{"$f":"'Corps et Santé'!B28","v":0},{"$f":"'Corps et Santé'!C28","v":0},{"$f":"'Corps et Santé'!D28","v":0},{"$f":"'Corps et Santé'!E28","v":0},{"$f":"'Corps et Santé'!F28","v":0},{"$f":"'Corps et Santé'!I28","v":0},{"$f":"'Corps et Santé'!L28","v":0},{"$f":"'Corps et Santé'!O28","v":0},{"$f":"'Corps et Santé'!R28","v":0},{"$f":"'Corps et Santé'!U28","v":0}]
[{"$f":"'Corps et Santé'!A29","v":0},{"$f":"'Corps et Santé'!B29","v":0},{"$f":"'Corps et Santé'!C29","v":0},{"$f":"'Corps et Santé'!D29","v":0},{"$f":"'Corps et Santé'!E29","v":0},{"$f":"'Corps et Santé'!F29","v":0},{"$f":"'Corps et Santé'!I29","v":0},{"$f":"'Corps et Santé'!L29","v":0},{"$f":"'Corps et Santé'!O29","v":0},{"$f":"'Corps et Santé'!R29","v":0},{"$f":"'Corps et Santé'!U29","v":0}]
[{"$f":"'Corps et Santé'!A30","v":0},{"$f":"'Corps et Santé'!B30","v":0},{"$f":"'Corps et Santé'!C30","v":0},{"$f":"'Corps et Santé'!D30","v":0},{"$f":"'Corps et Santé'!E30","v":0},{"$f":"'Corps et Santé'!F30","v":0},{"$f":"'Corps et Santé'!I30","v":0},{"$f":"'Corps et Santé'!L30","v":0},{"$f":"'Corps et Santé'!O30","v":0},{"$f":"'Corps et Santé'!R30","v":0},{"$f":"'Corps et Santé'!U30","v":0}]
[{"$f":"'Corps et Santé'!A31","v":0},{"$f":"'Corps et Santé'!B31","v":0},{"$f":"'Corps et Santé'!C31","v":0},{"$f":"'Corps et Santé'!D31","v":0},{"$f":"'Corps et Santé'!E31","v":0},{"$f":"'Corps et Santé'!F31","v":0},{"$f":"'Corps et Santé'!I31","v":0},{"$f":"'Corps et Santé'!L31","v":0},{"$f":"'Corps et Santé'!O31","v":0},{"$f":"'Corps et Santé'!R31","v":0},{"$f":"'Corps et Santé'!U31","v":0}]
[{"$f":"'Corps et Santé'!A32","v":0},{"$f":"'Corps et Santé'!B32","v":0},{"$f":"'Corps et Santé'!C32","v":0},{"$f":"'Corps et Santé'!D32","v":0},{"$f":"'Corps et Santé'!E32","v":0},{"$f":"'Corps et Santé'!F32","v":0},{"$f":"'Corps et Santé'!I32","v":0},{"$f":"'Corps et Santé'!L32","v":0},{"$f":"'Corps et Santé'!O32","v":0},{"$f":"'Corps et Santé'!R32","v":0},{"$f":"'Corps et Santé'!U32","v":0}]
[{"$f":"'Corps et Santé'!A33","v":0},{"$f":"'Corps et Santé'!B33","v":0},{"$f":"'Corps et Santé'!C33","v":0},{"$f":"'Corps et Santé'!D33","v":0},{"$f":"'Corps et Santé'!E33","v":0},{"$f":"'Corps et Santé'!F33","v":0},{"$f":"'Corps et Santé'!I33","v":0},{"$f":"'Corps et Santé'!L33","v":0},{"$f":"'Corps et Santé'!O33","v":0},{"$f":"'Corps et Santé'!R33","v":0},{"$f":"'Corps et Santé'!U33","v":0}]
[{"$f":"'Corps et Santé'!A34","v":0},{"$f":"'Corps et Santé'!B34","v":0},{"$f":"'Corps et Santé'!C34","v":0},{"$f":"'Corps et Santé'!D34","v":0},{"$f":"'Corps et Santé'!E34","v":0},{"$f":"'Corps et Santé'!F34","v":0},{"$f":"'Corps et Santé'!I34","v":0},{"$f":"'Corps et Santé'!L34","v":0},{"$f":"'Corps et Santé'!O34","v":0},{"$f":"'Corps et Santé'!R34","v":0},{"$f":"'Corps et Santé'!U34","v":0}]
[{"$f":"'Corps et Santé'!A35","v":0},{"$f":"'Corps et Santé'!B35","v":0},{"$f":"'Corps et Santé'!C35","v":0},{"$f":"'Corps et Santé'!D35","v":0},{"$f":"'Corps et Santé'!E35","v":0},{"$f":"'Corps et Santé'!F35","v":0},{"$f":"'Corps et Santé'!I35","v":0},{"$f":"'Corps et Santé'!L35","v":0},{"$f":"'Corps et Santé'!O35","v":0},{"$f":"'Corps et Santé'!R35","v":0},{"$f":"'Corps et Santé'!U35","v":0}]
[{"$f":"'Corps et Santé'!A36","v":0},{"$f":"'Corps et Santé'!B36","v":0},{"$f":"'Corps et Santé'!C36","v":0},{"$f":"'Corps et Santé'!D36","v":0},{"$f":"'Corps et Santé'!E36","v":0},{"$f":"'Corps et Santé'!F36","v":0},{"$f":"'Corps et Santé'!I36","v":0},{"$f":"'Corps et Santé'!L36","v":0},{"$f":"'Corps et Santé'!O36","v":0},{"$f":"'Corps et Santé'!R36","v":0},{"$f":"'Corps et Santé'!U36","v":0}]
[{"$f":"'Corps et Santé'!A37","v":0},{"$f":"'Corps et Santé'!B37","v":0},{"$f":"'Corps et Santé'!C37","v":0},{"$f":"'Corps et Santé'!D37","v":0},{"$f":"'Corps et Santé'!E37","v":0},{"$f":"'Corps et Santé'!F37","v":0},{"$f":"'Corps et Santé'!I37","v":0},{"$f":"'Corps et Santé'!L37","v":0},{"$f":"'Corps et Santé'!O37","v":0},{"$f":"'Corps et Santé'!R37","v":0},{"$f":"'Corps et Santé'!U37","v":0}]
[{"$f":"'Corps et Santé'!A38","v":0},{"$f":"'Corps et Santé'!B38","v":0},{"$f":"'Corps et Santé'!C38","v":0},{"$f":"'Corps et Santé'!D38","v":0},{"$f":"'Corps et Santé'!E38","v":0},{"$f":"'Corps et Santé'!F38","v":0},{"$f":"'Corps et Santé'!I38","v":0},{"$f":"'Corps et Santé'!L38","v":0},{"$f":"'Corps et Santé'!O38","v":0},{"$f":"'Corps et Santé'!R38","v":0},{"$f":"'Corps et Santé'!U38","v":0}]
[{"$f":"'Corps et Santé'!A39","v":0},{"$f":"'Corps et Santé'!B39","v":0},{"$f":"'Corps et Santé'!C39","v":0},{"$f":"'Corps et Santé'!D39","v":0},{"$f":"'Corps et Santé'!E39","v":0},{"$f":"'Corps et Santé'!F39","v":0},{"$f":"'Corps et Santé'!I39","v":0},{"$f":"'Corps et Santé'!L39","v":0},{"$f":"'Corps et Santé'!O39","v":0},{"$f":"'Corps et Santé'!R39","v":0},{"$f":"'Corps et Santé'!U39","v":0}]
[{"$f":"'Corps et Santé'!A40","v":0},{"$f":"'Corps et Santé'!B40","v":0},{"$f":"'Corps et Santé'!C40","v":0},{"$f":"'Corps et Santé'!D40","v":0},{"$f":"'Corps et Santé'!E40","v":0},{"$f":"'Corps et Santé'!F40","v":0},{"$f":"'Corps et Santé'!I40","v":0},{"$f":"'Corps et Santé'!L40","v":0},{"$f":"'Corps et Santé'!O40","v":0},{"$f":"'Corps et Santé'!R40","v":0},{"$f":"'Corps et Santé'!U40","v":0}]
[{"$f":"'Corps et Santé'!A41","v":0},{"$f":"'Corps et Santé'!B41","v":0},{"$f":"'Corps et Santé'!C41","v":0},{"$f":"'Corps et Santé'!D41","v":0},{"$f":"'Corps et Santé'!E41","v":0},{"$f":"'Corps et Santé'!F41","v":0},{"$f":"'Corps et Santé'!I41","v":0},{"$f":"'Corps et Santé'!L41","v":0},{"$f":"'Corps et Santé'!O41","v":0},{"$f":"'Corps et Santé'!R41","v":0},{"$f":"'Corps et Santé'!U41","v":0}]
[]
[{"$nulls":5},"Nombre d'ES par compétence sur l'année",{"$f":"COUNTIFS($G$6:$G$113,\"ES\")","v":0},{"$f":"COUNTIFS($H$6:$H$113,\"ES\")","v":0},{"$f":"COUNTIFS($I$6:$I$113,\"ES\")","v":0},{"$f":"COUNTIFS($J$6:$J$113,\"ES\")","v":0},{"$f":"COUNTIFS($K$6:$K$113,\"ES\")","v":0}]

{"sheet":"bilan compétences travaillées","index":5,"n_rows":44,"n_cols":7,"rows_kept":44,"merged":[[0,0,2,1],[0,2,0,4],[0,5,2,5],[0,6,2,6],[3,0,11,0],[3,6,11,6],[14,0,17,0],[14,6,17,6],[20,0,27,0],[20,6,27,6],[30,0,35,0],[30,6,35,6],[38,0,42,0],[38,6,42,6]]}
["Bilan du travail par compétences envisagé sur une année scolaire de Tle Spécialité SVT",null,"nombre total de fois que chaque compétence serait travaillée par thématique:",null,null,"nombre total de fois que chaque compétence serait travaillée sur l'année :","nombre total de fois que chaque grande compétence serait travaillée sur l'année :"]
[null,null,"Thématique 1 :","Thématique 2 :","Thématique 3 :"]
[null,null,"La Terre, la vie et l’organisation du vivant ","Les enjeux contemporains de la planète ","Corps humain et santé "]
[{"$f":"'Listes déroulantes'!F2","v":"Pratiquer des démarches scientifiques"},{"$f":"'Listes déroulantes'!F3","v":"  Formuler et résoudre un problème scientifique."},{"$f":"COUNTIFS('Terre, Vie et Vivant'!$G$6:H$41,$B4)","v":0},{"$f":"COUNTIFS(Enjeux!$G$6:H$41,$B4)","v":0},{"$f":"COUNTIFS('Corps et Santé'!$G$6:H$41,$B4)","v":0},{"$f":"SUM($C4:$E4)","v":0},{"$f":"SUM(F4:F12)","v":0}]
[null,{"$f":"'Listes déroulantes'!F4","v":"  Observer, questionner, formuler une hypothèse, en déduire ses conséquences testables ou vérifiables, expérimenter, raisonner avec rigueur, modéliser, argumenter. "},{"$f":"COUNTIFS('Terre, Vie et Vivant'!$G$6:H$41,$B5)","v":0},{"$f":"COUNTIFS(Enjeux!$G$6:H$41,$B5)","v":0},{"$f":"COUNTIFS('Corps et Santé'!$G$6:H$41,$B5)","v":0},{"$f":"SUM($C5:$E5)","v":0}]
[null,{"$f":"'Listes déroulantes'!F5","v":"CL – Analyser un problème, concevoir une stratégie de résolution et en prévoir les résultats"},{"$f":"COUNTIFS('Terre, Vie et Vivant'!$G$6:H$41,$B6)","v":0},{"$f":"COUNTIFS(Enjeux!$G$6:H$41,$B6)","v":0},{"$f":"COUNTIFS('Corps et Santé'!$G$6:H$41,$B6)","v":0},0]
[null,{"$f":"'Listes déroulantes'!F6","v":"  Interpréter des résultats et en tirer des conclusions. "},{"$f":"COUNTIFS('Terre, Vie et Vivant'!$G$6:H$41,$B7)","v":0},{"$f":"COUNTIFS(Enjeux!$G$6:H$41,$B7)","v":0},{"$f":"COUNTIFS('Corps et Santé'!$G$6:H$41,$B7)","v":0},0]
[null,{"$f":"'Listes déroulantes'!F7","v":"CL – Raisonner, argumenter, conclure en exerçant des démarches scientifiques et un sens critique"},{"$f":"COUNTIFS('Terre, Vie et Vivant'!$G$6:H$41,$B8)","v":0},{"$f":"COUNTIFS(Enjeux!$G$6:H$41,$B8)","v":0},{"$f":"COUNTIFS('Corps et Santé'!$G$6:H$41,$B8)","v":0},0]
[null,{"$f":"'Listes déroulantes'!F8","v":"CL – Présenter et exploiter des démarches et des résultats pour discuter de la validité d’une hypothèse"},{"$f":"COUNTIFS('Terre, Vie et Vivant'!$G$6:H$41,$B9)","v":0},{"$f":"COUNTIFS(Enjeux!$G$6:H$41,$B9)","v":0},{"$f":"COUNTIFS('Corps et Santé'!$G$6:H$41,$B9)","v":0},0]
[null,{"$f":"'Listes déroulantes'!F9","v":"  Comprendre le lien entre les phénomènes naturels et le langage mathématique. "},{"$f":"COUNTIFS('Terre, Vie et Vivant'!$G$6:H$41,$B10)","v":0},{"$f":"COUNTIFS(Enjeux!$G$6:H$41,$B10)","v":0},{"$f":"COUNTIFS('Corps et Santé'!$G$6:H$41,$B10)","v":0},0]
[null,{"$f":"'Listes déroulantes'!F10","v":"  Distinguer ce qui relève d’une croyance ou d’une opinion et ce qui constitue un savoir scientifique. "},{"$f":"COUNTIFS('Terre, Vie et Vivant'!$G$6:H$41,$B11)","v":0},{"$f":"COUNTIFS(Enjeux!$G$6:H$41,$B11)","v":0},{"$f":"COUNTIFS('Corps et Santé'!$G$6:H$41,$B11)","v":0},0]
[null,{"$f":"'Listes déroulantes'!F11","v":"Autre à définir"},{"$f":"COUNTIFS('Terre, Vie et Vivant'!$G$6:H$41,$B12)","v":0},{"$f":"COUNTIFS(Enjeux!$G$6:H$41,$B12)","v":0},{"$f":"COUNTIFS('Corps et Santé'!$G$6:H$41,$B12)","v":0},0]
[null,"vérification total compétences par thématique :",{"$f":"SUM(C4:C12)","v":0},{"$f":"SUM(D4:D12)","v":0},{"$f":"SUM(E4:E12)","v":0}]
[]
[{"$f":"'Listes déroulantes'!G2","v":"Concevoir, créer, réaliser"},{"$f":"'Listes déroulantes'!G3","v":"CL – Mettre en œuvre un protocole dans le respect des consignes de sécurité et dans le respect de l’environnement"},{"$f":"COUNTIFS('Terre, Vie et Vivant'!$J$6:K$41,$B15)","v":0},{"$f":"COUNTIFS(Enjeux!$J$6:K$41,$B15)","v":0},{"$f":"COUNTIFS('Corps et Santé'!$J$6:K$41,$B15)","v":0},{"$f":"SUM($C15:$E15)","v":0},{"$f":"SUM(F15:F18)","v":0}]
[null,{"$f":"'Listes déroulantes'!G4","v":"  Concevoir un protocole. "},{"$f":"COUNTIFS('Terre, Vie et Vivant'!$J$6:K$41,$B16)","v":0},{"$f":"COUNTIFS(Enjeux!$J$6:K$41,$B16)","v":0},{"$f":"COUNTIFS('Corps et Santé'!$J$6:K$41,$B16)","v":0},{"$f":"SUM($C16:$E16)","v":0}]
[null,{"$f":"'Listes déroulantes'!G5","v":"  Identifier et choisir des notions, des outils et des techniques, ou des modèles simples pour mettre en œuvre une démarche scientifique. "},{"$f":"COUNTIFS('Terre, Vie et Vivant'!$J$6:K$41,$B17)","v":0},{"$f":"COUNTIFS(Enjeux!$J$6:K$41,$B17)","v":0},{"$f":"COUNTIFS('Corps et Santé'!$J$6:K$41,$B17)","v":0},0]
[null,{"$f":"'Listes déroulantes'!G6","v":"Autre à définir"},{"$f":"COUNTIFS('Terre, Vie et Vivant'!$J$6:K$41,$B18)","v":0},{"$f":"COUNTIFS(Enjeux!$J$6:K$41,$B18)","v":0},{"$f":"COUNTIFS('Corps et Santé'!$J$6:K$41,$B18)","v":0},0]
[null,"vérification total compétences par thématique :",{"$f":"SUM(C15:C18)","v":0},{"$f":"SUM(D15:D18)","v":0},{"$f":"SUM(E15:E18)","v":0}]
[]
[{"$f":"'Listes déroulantes'!H2","v":"Utiliser des outils et mobiliser des méthodes pour apprendre"},{"$f":"'Listes déroulantes'!H3","v":"  Apprendre à organiser son travail. \n"},{"$f":"COUNTIFS('Terre, Vie et Vivant'!$M$6:$N$41,$B21)","v":0},{"$f":"COUNTIFS(Enjeux!$M$6:$N$41,$B21)","v":0},{"$f":"COUNTIFS('Corps et Santé'!$M$6:$N$41,$B21)","v":0},{"$f":"SUM($C21:$E21)","v":0},{"$f":"SUM(F21:F28)","v":0}]
[null,{"$f":"'Listes déroulantes'!H4","v":"CL – Rechercher, extraire et exploiter l’information utile\n(à partir de documents en citant ses sources, à des fins de connaissance et pas seulement d’information.)"},{"$f":"COUNTIFS('Terre, Vie et Vivant'!$M$6:$N$41,$B22)","v":0},{"$f":"COUNTIFS(Enjeux!$M$6:$N$41,$B22)","v":0},{"$f":"COUNTIFS('Corps et Santé'!$M$6:$N$41,$B22)","v":0},{"$f":"SUM($C22:$E22)","v":0}]
[null,{"$f":"'Listes déroulantes'!H5","v":"CL - Mobiliser et organiser ses connaissances pour répondre à une question ou à un problème scientifique"},{"$f":"COUNTIFS('Terre, Vie et Vivant'!$M$6:$N$41,$B23)","v":0},{"$f":"COUNTIFS(Enjeux!$M$6:$N$41,$B23)","v":0},{"$f":"COUNTIFS('Corps et Santé'!$M$6:$N$41,$B23)","v":0},0]
[null,{"$f":"'Listes déroulantes'!H6","v":"  Identifier et choisir les outils et les techniques pour garder trace de ses recherches (à l’oral et à l’écrit). \n"},{"$f":"COUNTIFS('Terre, Vie et Vivant'!$M$6:$N$41,$B24)","v":0},{"$f":"COUNTIFS(Enjeux!$M$6:$N$41,$B24)","v":0},{"$f":"COUNTIFS('Corps et Santé'!$M$6:$N$41,$B24)","v":0},0]
[null,{"$f":"'Listes déroulantes'!H7","v":"  Coopérer et collaborer dans le cadre de démarches de projet. "},{"$f":"COUNTIFS('Terre, Vie et Vivant'!$M$6:$N$41,$B25)","v":0},{"$f":"COUNTIFS(Enjeux!$M$6:$N$41,$B25)","v":0},{"$f":"COUNTIFS('Corps et Santé'!$M$6:$N$41,$B25)","v":0},0]
[null,{"$f":"'Listes déroulantes'!H8","v":"  Planifier et organiser son travail (Tle)"},{"$f":"COUNTIFS('Terre, Vie et Vivant'!$M$6:$N$41,$B26)","v":0},{"$f":"COUNTIFS(Enjeux!$M$6:$N$41,$B26)","v":0},{"$f":"COUNTIFS('Corps et Santé'!$M$6:$N$41,$B26)","v":0},0]
[null,{"$f":"'Listes déroulantes'!H9","v":"  Garder trace de ses recherches (à l’oral et à l’écrit) et mémoire de ses acquis précédents. (Tle)"},{"$f":"COUNTIFS('Terre, Vie et Vivant'!$M$6:$N$41,$B27)","v":0},{"$f":"COUNTIFS(Enjeux!$M$6:$N$41,$B27)","v":0},{"$f":"COUNTIFS('Corps et Santé'!$M$6:$N$41,$B27)","v":0},0]
[null,{"$f":"'Listes déroulantes'!H10","v":"Autre à définir"},{"$f":"COUNTIFS('Terre, Vie et Vivant'!$M$6:$N$41,$B28)","v":0},{"$f":"COUNTIFS(Enjeux!$M$6:$N$41,$B28)","v":0},{"$f":"COUNTIFS('Corps et Santé'!$M$6:$N$41,$B28)","v":0},0]
[null,"vérification total compétences par thématique :",{"$f":"SUM(C21:C28)","v":0},{"$f":"SUM(D21:D28)","v":0},{"$f":"SUM(E21:E28)","v":0}]
[]
[{"$f":"'Listes déroulantes'!I2","v":"Communiquer et utiliser le numérique / Pratiquer des langages"},{"$f":"'Listes déroulantes'!I3","v":"CL - ECRIT :  Communiquer sur ses démarches, ses résultats et ses choix à l’écrit en utilisant un langage rigoureux et des outils pertinents"},{"$f":"COUNTIFS('Terre, Vie et Vivant'!$P$6:$Q$41,$B31)","v":0},{"$f":"COUNTIFS(Enjeux!$P$6:$Q$41,$B31)","v":0},{"$f":"COUNTIFS('Corps et Santé'!$P$6:$Q$41,$B31)","v":0},{"$f":"SUM($C31:$E31)","v":0},{"$f":"SUM(F31:F36)","v":0}]
[null,{"$f":"'Listes déroulantes'!I4","v":"CL - ORAL : Communiquer sur ses démarches, ses résultats et ses choix à l’oral en utilisant un langage rigoureux et des outils pertinents"},{"$f":"COUNTIFS('Terre, Vie et Vivant'!$P$6:$Q$41,$B32)","v":0},{"$f":"COUNTIFS(Enjeux!$P$6:$Q$41,$B32)","v":0},{"$f":"COUNTIFS('Corps et Santé'!$P$6:$Q$41,$B32)","v":0},{"$f":"SUM($C32:$E32)","v":0}]
[null,{"$f":"'Listes déroulantes'!I5","v":"  Utiliser des logiciels : de simulation, d’acquisition ou de traitement de données  "},{"$f":"COUNTIFS('Terre, Vie et Vivant'!$P$6:$Q$41,$B33)","v":0},{"$f":"COUNTIFS(Enjeux!$P$6:$Q$41,$B33)","v":0},{"$f":"COUNTIFS('Corps et Santé'!$P$6:$Q$41,$B33)","v":0},{"$f":"SUM($C33:$E33)","v":0}]
[null,{"$f":"'Listes déroulantes'!I6","v":"  Conduire une recherche d’informations sur internet pertinentente (lien avec un problème scientifique, mots-clés, évaluation de la fiabilité des sources et la validité́ des résultats….) "},{"$f":"COUNTIFS('Terre, Vie et Vivant'!$P$6:$Q$41,$B34)","v":0},{"$f":"COUNTIFS(Enjeux!$P$6:$Q$41,$B34)","v":0},{"$f":"COUNTIFS('Corps et Santé'!$P$6:$Q$41,$B34)","v":0},0]
[null,{"$f":"'Listes déroulantes'!I7","v":"CL – Présenter et exploiter des démarches et des résultats pour discuter de la validité d’une hypothèse"},{"$f":"COUNTIFS('Terre, Vie et Vivant'!$P$6:$Q$41,$B35)","v":0},{"$f":"COUNTIFS(Enjeux!$P$6:$Q$41,$B35)","v":0},{"$f":"COUNTIFS('Corps et Santé'!$P$6:$Q$41,$B35)","v":0},0]
[null,{"$f":"'Listes déroulantes'!I8","v":"Autre à définir"},{"$f":"COUNTIFS('Terre, Vie et Vivant'!$P$6:$Q$41,$B36)","v":0},{"$f":"COUNTIFS(Enjeux!$P$6:$Q$41,$B36)","v":0},{"$f":"COUNTIFS('Corps et Santé'!$P$6:$Q$41,$B36)","v":0},0]
[null,"vérification total compétences par thématique :",{"$f":"SUM(C31:C36)","v":0},{"$f":"SUM(D31:D36)","v":0},{"$f":"SUM(E31:E36)","v":0}]
[]
[{"$f":"'Listes déroulantes'!J2","v":"C5. Adopter un comportement éthique et responsable"},{"$f":"'Listes déroulantes'!J3","v":"  Participer à l’élaboration de règles de sécurité et les appliquer au laboratoire et sur le terrain.  "},{"$f":"COUNTIFS('Terre, Vie et Vivant'!$S$6:$T$41,$B39)","v":0},{"$f":"COUNTIFS(Enjeux!$S$6:$T$41,$B39)","v":0},{"$f":"COUNTIFS('Corps et Santé'!$S$6:$T$41,$B39)","v":0},{"$f":"SUM($C39:$E39)","v":0},{"$f":"SUM(F39:F43)","v":0}]
[null,{"$f":"'Listes déroulantes'!J4","v":"  Identifier les impacts (bénéfices et nuisances) des activités humaines sur l’environnement à différentes échelles. "},{"$f":"COUNTIFS('Terre, Vie et Vivant'!$S$6:$T$41,$B40)","v":0},{"$f":"COUNTIFS(Enjeux!$S$6:$T$41,$B40)","v":0},{"$f":"COUNTIFS('Corps et Santé'!$S$6:$T$41,$B40)","v":0},0]
[null,{"$f":"'Listes déroulantes'!J5","v":"  Comprendre les responsabilités individuelle et collective en matière de préservation des ressources de la planète (biodiversité, ressources minérales et ressources énergétiques) et de santé. "},{"$f":"COUNTIFS('Terre, Vie et Vivant'!$S$6:$T$41,$B41)","v":0},{"$f":"COUNTIFS(Enjeux!$S$6:$T$41,$B41)","v":0},{"$f":"COUNTIFS('Corps et Santé'!$S$6:$T$41,$B41)","v":0},0]
[null,{"$f":"'Listes déroulantes'!J6","v":"CL – Argumenter des choix en matière de santé et d’environnement en prenant en compte des arguments scientifiques"},{"$f":"COUNTIFS('Terre, Vie et Vivant'!$S$6:$T$41,$B42)","v":0},{"$f":"COUNTIFS(Enjeux!$S$6:$T$41,$B42)","v":0},{"$f":"COUNTIFS('Corps et Santé'!$S$6:$T$41,$B42)","v":0},0]
[null,{"$f":"'Listes déroulantes'!J7","v":"Autre à définir"},{"$f":"COUNTIFS('Terre, Vie et Vivant'!$S$6:$T$41,$B43)","v":0},{"$f":"COUNTIFS(Enjeux!$S$6:$T$41,$B43)","v":0},{"$f":"COUNTIFS('Corps et Santé'!$S$6:$T$41,$B43)","v":0},0]
[null,"vérification total compétences par thématique :",{"$f":"SUM(C39:C43)","v":0},{"$f":"SUM(D39:D43)","v":0},{"$f":"SUM(E39:E43)","v":0}]

{"sheet":"Listes déroulantes","index":6,"n_rows":12,"n_cols":10,"rows_kept":12,"hidden":true,"merged":[[0,5,0,9]]}
[{"$nulls":5},"compétences du livret scolaire : CL"]
["présentiel\ndistanciel","type de salle de classe","activite","evaluation",null,"Pratiquer des démarches scientifiques","Concevoir, créer, réaliser","Utiliser des outils et mobiliser des méthodes pour apprendre","Communiquer et utiliser le numérique / Pratiquer des langages","C5. Adopter un comportement éthique et responsable"]
["Présentiel obligatoire","laboratoire","Activité expérimentale","ES",null,"  Formuler et résoudre un problème scientifique.","CL – Mettre en œuvre un protocole dans le respect des consignes de sécurité et dans le respect de l’environnement","  Apprendre à organiser son travail. \n","CL - ECRIT :  Communiquer sur ses démarches, ses résultats et ses choix à l’écrit en utilisant un langage rigoureux et des outils pertinents","  Participer à l’élaboration de règles de sécurité et les appliquer au laboratoire et sur le terrain.  "]
["Présentiel ou distanciel","salle informatique","Activité documentaire","ED",null,"  Observer, questionner, formuler une hypothèse, en déduire ses conséquences testables ou vérifiables, expérimenter, raisonner avec rigueur, modéliser, argumenter. ","  Concevoir un protocole. ","CL – Rechercher, extraire et exploiter l’information utile\n(à partir de documents en citant ses sources, à des fins de connaissance et pas seulement d’information.)","CL - ORAL : Communiquer sur ses démarches, ses résultats et ses choix à l’oral en utilisant un langage rigoureux et des outils pertinents","  Identifier les impacts (bénéfices et nuisances) des activités humaines sur l’environnement à différentes échelles. "]
["Présentiel et distanciel","salle banalisée","Activité mixte (documentaire et expérimentale) sans être une tâche complexe","EF",null,"CL – Analyser un problème, concevoir une stratégie de résolution et en prévoir les résultats","  Identifier et choisir des notions, des outils et des techniques, ou des modèles simples pour mettre en œuvre une démarche scientifique. ","CL - Mobiliser et organiser ses connaissances pour répondre à une question ou à un problème scientifique","  Utiliser des logiciels : de simulation, d’acquisition ou de traitement de données  ","  Comprendre les responsabilités individuelle et collective en matière de préservation des ressources de la planète (biodiversité, ressources minérales et ressources énergétiques) et de santé. "]
[null,null,"Tâche complexe","Auto-évaluation",null,"  Interpréter des résultats et en tirer des conclusions. ","Autre à définir","  Identifier et choisir les outils et les techniques pour garder trace de ses recherches (à l’oral et à l’écrit). \n","  Conduire une recherche d’informations sur internet pertinentente (lien avec un problème scientifique, mots-clés, évaluation de la fiabilité des sources et la validité́ des résultats….) ","CL – Argumenter des choix en matière de santé et d’environnement en prenant en compte des arguments scientifiques"]
[null,null,"Débat","Aucune",null,"CL – Raisonner, argumenter, conclure en exerçant des démarches scientifiques et un sens critique",null,"  Coopérer et collaborer dans le cadre de démarches de projet. ","CL – Présenter et exploiter des démarches et des résultats pour discuter de la validité d’une hypothèse","Autre à définir"]
[null,null,"Travail sur l'oral ",null,null,"CL – Présenter et exploiter des démarches et des résultats pour discuter de la validité d’une hypothèse",null,"  Planifier et organiser son travail (Tle)","Autre à définir"]
[null,null,"Projet pédagogique",null,null,"  Comprendre le lien entre les phénomènes naturels et le langage mathématique. ",null,"  Garder trace de ses recherches (à l’oral et à l’écrit) et mémoire de ses acquis précédents. (Tle)"]
[null,null,"Sortie/Voyage",null,null,"  Distinguer ce qui relève d’une croyance ou d’une opinion et ce qui constitue un savoir scientifique. ",null,"Autre à définir"]
[null,null,"Phase bilan d'apprentissages",null,null,"Autre à définir"]
[null,null,"Autre à définir"]

{"sheet":"sous-thèmes SVT lycée","index":7,"n_rows":21,"n_cols":6,"rows_kept":21,"hidden":true}
[null,"2nde",null,"1 spé",null,"Tle SPé"]
[null," L’organisme pluricellulaire, un ensemble de cellules spécialisées ",null," Les divisions cellulaires des eucaryotes ",null," L’origine du génotype des individus "]
[null," Le métabolisme des cellules ",null," La réplication de l'ADN ",null," La complexification des génomes : transferts horizontaux et endosymbioses "]
[null," Les échelles de la biodiversité ",null," Mutations de l’ADN et variabilité génétique ",null," L’inéluctable évolution des génomes au sein des populations "]
[null," La biodiversité change au cours du temps. ",null," L’histoire humaine lue dans son génome ",null," D’autres mécanismes contribuent à la diversité du vivant "]
[null," L’évolution de la biodiversité au cours du temps s’explique par des forces évolutives s’exerçant au niveau des populations ",null," L’expression du patrimoine génétique ",null," Le temps et les roches "]
[null," Communication intra-spécifique et sélection sexuelle ",null," Les enzymes, des biomolécules aux propriétés catalytiques ",null," Les traces du passé mouvementé de la Terre "]
[null," L’érosion, processus et conséquences ",null," La structure du globe terrestre ",null," L’organisation fonctionnelle des plantes à fleurs "]
[null," Sédimentation et milieux de sédimentation ",null," La dynamique de la lithosphère ",null," La plante, productrice de matière organique "]
[null," Érosion et activité humaine ",null," Les écosystèmes : des interactions dynamiques entre les êtres vivants et entre eux et leur milieu ",null," Reproduction de la plante entre vie fixée et mobilité "]
[null," Structure et fonctionnement des agrosystèmes ",null," L’humanité et les écosystèmes : les services écosystémiques et leur gestion ",null," La domestication des plantes "]
[null," Caractéristiques des sols et production de biomasse ",null," Mutations et santé ",null,"Reconstituer et comprendre les variations climatiques passées "]
[null," Vers une gestion durable des agrosystèmes ",null," Patrimoine génétique et santé ",null," Comprendre les conséquences du réchauffement climatique et les possibilités d’actions "]
[null," Corps humain : de la fécondation à la puberté ",null," Altérations du génome et cancérisation ",null," Les réflexes "]
[null," Cerveau, plaisir, sexualité ",null," Variation génétique bactérienne et résistance aux antibiotiques ",null," Cerveau et mouvement volontaire "]
[null," Hormones et procréation humaine ",null," L’immunité innée ",null," Le cerveau, un organe fragile à préserver "]
[null," Agents pathogènes et maladies vectorielles ",null," L'immunité adaptative ",null," La cellule musculaire : une structure spécialisée permettant son propre raccourcissement "]
[null," Microbiote humain et santé ",null," L’utilisation de l’immunité adaptative en santé humaine ",null," Origine de l’ATP nécessaire à la contraction de la cellule musculaire "]
[{"$nulls":5}," Le contrôle des flux de glucose, source essentielle d’énergie des cellules musculaires "]
[{"$nulls":5}," L’adaptabilité de l’organisme "]
[{"$nulls":5}," L’organisme débordé dans ses capacités d’adaptation "]